Workbook

Sheet Sheet1
B2: ÇERÇEVE CROSS (6 AÇIKLIKLI) (rijitlik çarpanlı) (inş.müh. Gürcan BERBEROĞLU tel: 0532 366 02 04 www.betoncelik.com )
C3: pas payı d ' = | H3: 0.03 | J3: m | Q3: Pd = 1,4 * g + 1,6 * q | AW3: dikkat sadece sarı hücrelere rakam giriniz.
C4: kiriş için etkin rijitlik çarpanı = | L4: 0.35 | Q4: Not: kolon ve kiriş atalet momentleri etkin rijitlik çarpanı ile çarpılmıştır.
C5: kolon için etkin rijitlik çarpanı = | L5: 0.7
E6: sol konsol yükler | Q6: 1.ci açıklık yükler | AG6: 2.ci açıklık yükler | AW6: 3.cü açıklık yükler | BM6: 4.cü açıklık yükler | CC6: 5.ci açıklık yükler | CS6: 6.ci açıklık yükler | DF6: sağ konsol yükler
E7: g= | F7: 12 | I7: KN/m | R7: g= | S7: 12 | V7: KN/m | AH7: g= | AI7: 12 | AL7: KN/m | AX7: g= | AY7: 12 | BB7: KN/m | BN7: g= | BO7: 12 | BR7: KN/m | CD7: g= | CE7: 12 | CH7: KN/m | CT7: g= | CU7: 12 | CX7: KN/m | DG7: g= | DH7: 12 | DK7: KN/m
E8: q= | F8: 16 | I8: KN/m | R8: q= | S8: 16 | V8: KN/m | AH8: q= | AI8: 16 | AL8: KN/m | AX8: q= | AY8: 16 | BB8: KN/m | BN8: q= | BO8: 16 | BR8: KN/m | CD8: q= | CE8: 16 | CH8: KN/m | CT8: q= | CU8: 16 | CX8: KN/m | DG8: q= | DH8: 16 | DK8: KN/m
C9: 1,4 * g = | F9: =1.4*F7 -> 16.8 | I9: KN/m | P9: 1,4 * g = | S9: =1.4*S7 -> 16.8 | V9: KN/m | AF9: 1,4 * g = | AI9: =1.4*AI7 -> 16.8 | AL9: KN/m | AV9: 1,4 * g = | AY9: =1.4*AY7 -> 16.8 | BB9: KN/m | BL9: 1,4 * g = | BO9: =1.4*BO7 -> 16.8 | BR9: KN/m | CB9: 1,4 * g = | CE9: =1.4*CE7 -> 16.8 | CH9: KN/m | CR9: 1,4 * g = | CU9: =1.4*CU7 -> 16.8 | CX9: KN/m | DE9: 1,4 * g = | DH9: =1.4*DH7 -> 16.8 | DK9: KN/m
D10: Pd = | F10: =1.4*F7+1.6*F8 -> 42.4 | I10: KN/m | P10: Pd = | S10: =1.4*S7+1.6*S8 -> 42.4 | V10: KN/m | AG10: Pd = | AI10: =1.4*AI7+1.6*AI8 -> 42.4 | AL10: KN/m | AW10: Pd = | AY10: =1.4*AY7+1.6*AY8 -> 42.4 | BB10: KN/m | BM10: Pd = | BO10: =1.4*BO7+1.6*BO8 -> 42.4 | BR10: KN/m | CC10: Pd = | CE10: =1.4*CE7+1.6*CE8 -> 42.4 | CH10: KN/m | CS10: Pd = | CU10: =1.4*CU7+1.6*CU8 -> 42.4 | CX10: KN/m | DF10: Pd = | DH10: =1.4*DH7+1.6*DH8 -> 42.4 | DK10: KN/m
C11: g + g = | F11: =F8+F7 -> 28 | I11: KN/m | P11: g + g = | S11: =S8+S7 -> 28 | V11: KN/m | AF11: g + g = | AI11: =AI8+AI7 -> 28 | AL11: KN/m | AV11: g + g = | AY11: =AY8+AY7 -> 28 | BB11: KN/m | BL11: g + g = | BO11: =BO8+BO7 -> 28 | BR11: KN/m | CB11: g + g = | CE11: =CE8+CE7 -> 28 | CH11: KN/m | CR11: g + g = | CU11: =CU8+CU7 -> 28 | CX11: KN/m | DE11: g + g = | DH11: =DH8+DH7 -> 28 | DK11: KN/m
C12: 0,9 * g = | F12: =0.9*F7 -> 10.8 | I12: KN/m | P12: 0,9 * g = | S12: =0.9*S7 -> 10.8 | V12: KN/m | AF12: 0,9 * g = | AI12: =0.9*AI7 -> 10.8 | AL12: KN/m | AV12: 0,9 * g = | AY12: =0.9*AY7 -> 10.8 | BB12: KN/m | BL12: 0,9 * g = | BO12: =0.9*BO7 -> 10.8 | BR12: KN/m | CB12: 0,9 * g = | CE12: =0.9*CE7 -> 10.8 | CH12: KN/m | CR12: 0,9 * g = | CU12: =0.9*CU7 -> 10.8 | CX12: KN/m | DE12: 0,9 * g = | DH12: =0.9*DH7 -> 10.8 | DK12: KN/m
K13: 0.5 | M13: m | AA13: 0.5 | AC13: m | AQ13: 0.5 | AS13: m | BG13: 0.5 | BI13: m | BW13: 0.5 | BY13: m | CM13: 0.5 | CO13: m | DC13: 0.5 | DE13: m
H15: 0.6 | J15: m | X15: 0.6 | Z15: m | AN15: 0.6 | AP15: m | BD15: 0.6 | BF15: m | BT15: 0.6 | BV15: m | CJ15: 0.6 | CL15: m | CZ15: 0.6 | DB15: m
G19: =-(H31+L31)*K31 -> -4.598225075 | N19: =-(H31+L31)*K27 -> -4.235207306 | W19: =-(X32+AB32+X31+AB31)*AA31 -> -36.45859771 | AD19: =-(X32+AB32+X31+AB31)*AA27 -> -33.58028737 | AM19: =-(AN31+AR31)*AQ31 -> 30.35218833 | AT19: =-(AN31+AR31)*AQ27 -> 27.95596293 | BC19: =-(BD31+BH31+BD32+BH32)*BG31 -> 3.506593229 | BJ19: =-(BD31+BH31+BD32+BH32)*BG27 -> 3.229756922 | BS19: =-(BT31+BX31)*BW31 -> -8.379336526 | BZ19: =-(BT31+BX31)*BW27 -> -7.717809958 | CI19: =-(CJ32+CJ31+CN31+CN32)*CM31 -> 10.23295503 | CP19: =-(CJ32+CJ31+CN31+CN32)*CM27 -> 9.425090157 | CY19: =-(CZ31+DD31)*DC31 -> -9.661260083 | DF19: =-(CZ31+DD31)*DC27 -> -8.898529024
G20: =-L33*K31 -> 4.608314352 | K20: dm4 | N20: =-L33*K27 -> 4.244500061 | W20: =-(X34+AB34)*AA31 -> -0.6875865718 | AA20: dm4 | AD20: =-(X34+AB34)*AA27 -> -0.6333034214 | AM20: =-(AN33+AR33)*AQ31 -> 2.357872314 | AQ20: dm4 | AT20: =-(AN33+AR33)*AQ27 -> 2.1717245 | BC20: =-(BD34+BH34)*BG31 -> -0.09090678376 | BG20: dm4 | BJ20: =-(BD34+BH34)*BG27 -> -0.08372993241 | BS20: =-(BT33+BX33)*BW31 -> -1.704669585 | BW20: dm4 | BZ20: =-(BT33+BX33)*BW27 -> -1.570090407 | CI20: =-(CJ34+CN34)*CM31 -> 0.4207590103 | CM20: dm4 | CP20: =-(CJ34+CN34)*CM27 -> 0.3875411937 | CY20: =-CZ33*DC31 -> -1.687826418 | DC20: dm4 | DF20: =-CZ33*DC27 -> -1.554576964
G21: =-L35*K31 -> 0.08690995447 | N21: =-L35*K27 -> 0.08004864228 | W21: =-(X36+AB36)*AA31 -> -0.01499064255 | AD21: =-(X36+AB36)*AA27 -> -0.01380717077 | AM21: =-(AN35+AR35)*AQ31 -> 0.06743103467 | AT21: =-(AN35+AR35)*AQ27 -> 0.06210753193 | BC21: =-(BD36+BH36)*BG31 -> -0.003722369243 | BJ21: =-(BD36+BH36)*BG27 -> -0.003428497987 | BS21: =-(BT35+BX35)*BW31 -> -0.03985236234 | BZ21: =-(BT35+BX35)*BW27 -> -0.03670612321 | CI21: =-(CJ36+CN36)*CM31 -> 0.01355018865 | CP21: =-(CJ36+CN36)*CM27 -> 0.01248043692 | CY21: =-CZ35*DC31 -> -0.06940010694 | DF21: =-CZ35*DC27 -> -0.06392115113 | DJ21: m
G22: =-L37*K31 -> 0.001894795673 | K22: =H15*K13^3/12*10000*L5 -> 43.75 | N22: =-L37*K27 -> 0.001745206541 | W22: =-(X38+AB38)*AA31 -> -0.0003492459888 | AA22: =X15*AA13^3/12*10000*L5 -> 43.75 | AD22: =-(X38+AB38)*AA27 -> -0.000321673937 | AM22: =-(AN37+AR37)*AQ31 -> 0.00172461484 | AQ22: =AN15*AQ13^3/12*10000*L5 -> 43.75 | AT22: =-(AN37+AR37)*AQ27 -> 0.001588461036 | BC22: =-(BD38+BH38)*BG31 -> -7.47764689e-05 | BG22: =BD15*BG13^3/12*10000*L5 -> 43.75 | BJ22: =-(BD38+BH38)*BG27 -> -6.887306346e-05 | BS22: =-(BT37+BX37)*BW31 -> -0.001181175606 | BW22: =BT15*BW13^3/12*10000*L5 -> 43.75 | BZ22: =-(BT37+BX37)*BW27 -> -0.0010879249 | CI22: =-(CJ38+CN38)*CM31 -> 0.0004236924139 | CM22: =CJ15*CM13^3/12*10000*L5 -> 43.75 | CP22: =-(CJ38+CN38)*CM27 -> 0.0003902430128 | CY22: =-CZ37*DC31 -> -0.002234971845 | DC22: =CZ15*DC13^3/12*10000*L5 -> 43.75 | DF22: =-CZ37*DC27 -> -0.0020585267
G23: =-L39*K31 -> 4.414419104e-05 | N23: =-L39*K27 -> 4.065912333e-05 | AM23: =-(AN39+AR39)*AQ31 -> 3.843261147e-05 | AT23: =-(AN39+AR39)*AQ27 -> 3.539845794e-05 | BS23: =-(BT39+BX39)*BW31 -> -4.22866046e-05 | BZ23: =-(BT39+BX39)*BW27 -> -3.894818845e-05 | CY23: =-CZ39*DC31 -> -6.988394334e-05 | DF23: =-CZ39*DC27 -> -6.436678992e-05 | DJ23: 3.8
G24: =SUM(G19:I23) -> 0.09893817138 | N24: =SUM(N19:P23) -> 0.09112726312 | W24: =SUM(W19:Y23) -> -37.16152417 | AD24: =SUM(AD19:AF23) -> -34.22771963 | AM24: =SUM(AM19:AO23) -> 32.77925472 | AT24: =SUM(AT19:AV23) -> 30.19141883 | BC24: =SUM(BC19:BE23) -> 3.4118893 | BJ24: =SUM(BJ19:BL23) -> 3.142529618 | BS24: =SUM(BS19:BU23) -> -10.12508194 | BZ24: =SUM(BZ19:CB23) -> -9.325733362 | CI24: =SUM(CI19:CK23) -> 10.66768792 | CP24: =SUM(CP19:CR23) -> 9.825502031 | CY24: =SUM(CY19:DA23) -> -11.42079146 | DF24: =SUM(DF19:DH23) -> -10.51915003
K25: I = | AA25: I = | AQ25: I = | BG25: I = | BW25: I = | CM25: I = | DC25: I =
K27: =(K22/DJ23)/(K22/DJ23+K36/DJ35+R31/S43) -> 0.3582479535 | AA27: =(AA22/DJ23)/(R31/S43+AA22/DJ23+AA36/DJ35+AH31/AI43) -> 0.295120192 | AQ27: =(AQ22/DJ23)/(AH31/AI43+AQ22/DJ23+AQ36/DJ35+AX31/AY43) -> 0.2637354994 | BG27: =(BG22/DJ23)/(AX31/AY43+BG22/DJ23+BG36/DJ35+BN31/BO43) -> 0.2340459889 | BW27: =(BW22/DJ23)/(BN31/BO43+BW22/DJ23+BW36/DJ35+CD31/CE43) -> 0.2386335515 | CM27: =(CM22/DJ23)/(CD31/CE43+CM22/DJ23+CM36/DJ35+CT31/CU43) -> 0.2415932371 | DC27: =(DC22/DJ23)/(CD31/CE43+DC22/DJ23+DC36/DJ35) -> 0.3212901471
E28: Pd = | Q28: d= | R28: =+O52-$H$3 -> 0.67 | T28: m | AG28: d= | AH28: =+AE52-$H$3 -> 0.67 | AJ28: m | AW28: d= | AX28: =+AU52-$H$3 -> 0.67 | AZ28: m | BM28: d= | BN28: =+BK52-$H$3 -> 0.67 | BP28: m | CC28: d= | CD28: =+CA52-$H$3 -> 0.67 | CF28: m | CS28: d= | CT28: =+CQ52-$H$3 -> 0.67 | CV28: m | DE28: Pd =
E29: =IF(E28="g =",F7,IF(E28="Pd =",F10,IF(E28="1,4 * g =",F9,IF(E28="g + q =",F11,IF(E28="0,9 * g =",F12,"hatalı"))))) -> 42.4 | H29: KN/m | N29: 1,4 * g = | Q29: =IF(N29="g =",S7,IF(N29="Pd =",S10,IF(N29="1,4 * g =",S9,IF(N29="g + q =",S11,IF(N29="0,9 * g =",S12,"hatalı"))))) -> 16.8 | T29: KN/m | AD29: Pd = | AG29: =IF(AD29="g =",AI7,IF(AD29="Pd =",AI10,IF(AD29="1,4 * g =",AI9,IF(AD29="g + q =",AI11,IF(AD29="0,9 * g =",AI12,"hatalı"))))) -> 42.4 | AJ29: KN/m | AT29: Pd = | AW29: =IF(AT29="g =",AY7,IF(AT29="Pd =",AY10,IF(AT29="1,4 * g =",AY9,IF(AT29="g + q =",AY11,IF(AT29="0,9 * g =",AY12,"hatalı"))))) -> 42.4 | AZ29: KN/m | BJ29: 1,4 * g = | BM29: =IF(BJ29="g =",BO7,IF(BJ29="Pd =",BO10,IF(BJ29="1,4 * g =",BO9,IF(BJ29="g + q =",BO11,IF(BJ29="0,9 * g =",BO12,"hatalı"))))) -> 16.8 | BP29: KN/m | BZ29: Pd = | CC29: =IF(BZ29="g =",CE7,IF(BZ29="Pd =",CE10,IF(BZ29="1,4 * g =",CE9,IF(BZ29="g + q =",CE11,IF(BZ29="0,9 * g =",CE12,"hatalı"))))) -> 42.4 | CF29: KN/m | CP29: 1,4 * g = | CS29: =IF(CP29="g =",CU7,IF(CP29="Pd =",CU10,IF(CP29="1,4 * g =",CU9,IF(CP29="g + q =",CU11,IF(CP29="0,9 * g =",CU12,"hatalı"))))) -> 16.8 | CV29: KN/m | DE29: =IF(DE28="g =",DH7,IF(DE28="Pd =",DH10,IF(DE28="1,4 * g =",DH9,IF(DE28="g + q =",DH11,IF(DE28="0,9 * g =",DH12,"hatalı"))))) -> 42.4 | DH29: KN/m
I30: 0 | L30: =(R31/S43)/(K22/DJ23+K36/DJ35+R31/S43) -> 0.2527971256 | Y30: =(R31/S43)/(R31/S43+AA22/DJ23+AA36/DJ35+AH31/AI43) -> 0.2082511164 | AB30: =(AH31/AI43)/(R31/S43+AA22/DJ23+AA36/DJ35+AH31/AI43) -> 0.1762124831 | AO30: =(AH31/AI43)/(AH31/AI43+AQ22/DJ23+AQ36/DJ35+AX31/AY43) -> 0.1574730855 | AR30: =(AX31/AY43)/(AH31/AI43+AQ22/DJ23+AQ36/DJ35+AX31/AY43) -> 0.2924500158 | BE30: =(AX31/AY43)/(AX31/AY43+BG22/DJ23+BG36/DJ35+BN31/BO43) -> 0.2595280246 | BH30: =(BN31/BO43)/(AX31/AY43+BG22/DJ23+BG36/DJ35+BN31/BO43) -> 0.2523189128 | BU30: =(BN31/BO43)/(BN31/BO43+BW22/DJ23+BW36/DJ35+CD31/CE43) -> 0.257264645 | BX30: =(CD31/CE43)/(BN31/BO43+BW22/DJ23+BW36/DJ35+CD31/CE43) -> 0.2450139476 | CK30: =(CD31/CE43)/(CD31/CE43+CM22/DJ23+CM36/DJ35+CT31/CU43) -> 0.248052767 | CN30: =(CT31/CU43)/(CD31/CE43+CM22/DJ23+CM36/DJ35+CT31/CU43) -> 0.248052767 | DA30: =(CD31/CE43)/(CD31/CE43+DC22/DJ23+DC36/DJ35) -> 0.3298805503 | DD30: 0
H31: =-E29*I43*I43/2 -> -30.528 | K31: =(K36/DJ35)/(K22/DJ23+K36/DJ35+R31/S43) -> 0.3889549209 | L31: =Q29*S43^2/12 -> 42.35 | Q31: I= | R31: =(R49*U51^3/12+U51*R49*(((U51*R49*U51/2+R56*(O52-U51)*((O52-U51)/2+U51))/(R49*U51+(O52-U51)*R56))-U51/2)^2+R56*(O52-U51)^3/12+R56*(O52-U51)*(O52-((U51*R49*U51/2+R56*(O52-U51)*((O52-U51)/2+U51))/(R49*U51+(O52-U51)*R56))-(O52-U51)/2)^2)*10000*L4 -> 44.68333333 | U31: dm4 | X31: =-Q29*S43^2/12 -> -42.35 | AA31: =(AA36/DJ35)/(R31/S43+AA22/DJ23+AA36/DJ35+AH31/AI43) -> 0.3204162085 | AB31: =AG29*AI43^2/12 -> 149.2833333 | AG31: I= | AH31: =(AH49*AK51^3/12+AK51*AH49*(((AK51*AH49*AK51/2+AH56*(AE52-AK51)*((AE52-AK51)/2+AK51))/(AH49*AK51+(AE52-AK51)*AH56))-AK51/2)^2+AH56*(AE52-AK51)^3/12+AH56*(AE52-AK51)*(AE52-((AK51*AH49*AK51/2+AH56*(AE52-AK51)*((AE52-AK51)/2+AK51))/(AH49*AK51+(AE52-AK51)*AH56))-(AE52-AK51)/2)^2)*10000*L4 -> 44.68333333 | AK31: dm4 | AN31: =-AG29*AI43^2/12 -> -149.2833333 | AQ31: =(AQ36/DJ35)/(AH31/AI43+AQ22/DJ23+AQ36/DJ35+AX31/AY43) -> 0.2863413993 | AR31: =AW29*AY43^2/12 -> 43.28333333 | AW31: I= | AX31: =(AX49*BA51^3/12+BA51*AX49*(((BA51*AX49*BA51/2+AX56*(AU52-BA51)*((AU52-BA51)/2+BA51))/(AX49*BA51+(AU52-BA51)*AX56))-BA51/2)^2+AX56*(AU52-BA51)^3/12+AX56*(AU52-BA51)*(AU52-((BA51*AX49*BA51/2+AX56*(AU52-BA51)*((AU52-BA51)/2+BA51))/(AX49*BA51+(AU52-BA51)*AX56))-(AU52-BA51)/2)^2)*10000*L4 -> 44.68333333 | BA31: dm4 | BD31: =-AW29*AY43^2/12 -> -43.28333333 | BG31: =(BG36/DJ35)/(AX31/AY43+BG22/DJ23+BG36/DJ35+BN31/BO43) -> 0.2541070737 | BH31: =BM29*BO43^2/12 -> 18.144 | BM31: I= | BN31: =(BN49*BQ51^3/12+BQ51*BN49*(((BQ51*BN49*BQ51/2+BN56*(BK52-BQ51)*((BK52-BQ51)/2+BQ51))/(BN49*BQ51+(BK52-BQ51)*BN56))-BQ51/2)^2+BN56*(BK52-BQ51)^3/12+BN56*(BK52-BQ51)*(BK52-((BQ51*BN49*BQ51/2+BN56*(BK52-BQ51)*((BK52-BQ51)/2+BQ51))/(BN49*BQ51+(BK52-BQ51)*BN56))-(BK52-BQ51)/2)^2)*10000*L4 -> 44.68333333 | BQ31: dm4 | BT31: =-BM29*BO43^2/12 -> -18.144 | BW31: =(BW36/DJ35)/(BN31/BO43+BW22/DJ23+BW36/DJ35+CD31/CE43) -> 0.2590878559 | BX31: =CC29*CE43^2/12 -> 50.48568 | CC31: I= | CD31: =(CD49*CG51^3/12+CG51*CD49*(((CG51*CD49*CG51/2+CD56*(CA52-CG51)*((CA52-CG51)/2+CG51))/(CD49*CG51+(CA52-CG51)*CD56))-CG51/2)^2+CD56*(CA52-CG51)^3/12+CD56*(CA52-CG51)*(CA52-((CG51*CD49*CG51/2+CD56*(CA52-CG51)*((CA52-CG51)/2+CG51))/(CD49*CG51+(CA52-CG51)*CD56))-(CA52-CG51)/2)^2)*10000*L4 -> 44.68333333 | CG31: dm4 | CJ31: =-CC29*CE43^2/12 -> -50.48568 | CM31: =(CM36/DJ35)/(CD31/CE43+CM22/DJ23+CM36/DJ35+CT31/CU43) -> 0.2623012288 | CN31: =CS29*CU43^2/12 -> 20.00376 | CS31: I= | CT31: =(CT49*CW51^3/12+CW51*CT49*(((CW51*CT49*CW51/2+CT56*(CQ52-CW51)*((CQ52-CW51)/2+CW51))/(CT49*CW51+(CQ52-CW51)*CT56))-CW51/2)^2+CT56*(CQ52-CW51)^3/12+CT56*(CQ52-CW51)*(CQ52-((CW51*CT49*CW51/2+CT56*(CQ52-CW51)*((CQ52-CW51)/2+CW51))/(CT49*CW51+(CQ52-CW51)*CT56))-(CQ52-CW51)/2)^2)*10000*L4 -> 44.68333333 | CW31: dm4 | CZ31: =-CS29*CU43^2/12 -> -20.00376 | DC31: =(DC36/DJ35)/(CD31/CE43+DC22/DJ23+DC36/DJ35) -> 0.3488293026 | DD31: =DE29*DE43*DE43/2 -> 47.7
L32: =-(H31+L31)*L30 -> -2.988567619 | X32: =+L32/2 -> -1.494283809 | AB32: =AN32/2 -> 8.346073529 | AN32: =-(AN31+AR31)*AO30 -> 16.69214706 | AR32: =-(AN31+AR31)*AR30 -> 30.99970168 | BD32: =+AR32/2 -> 15.49985084 | BH32: =BT32/2 -> -4.160185412 | BT32: =-(BT31+BX31)*BU30 -> -8.320370825 | BX32: =-(BT31+BX31)*BX30 -> -7.92416269 | CJ32: =+BX32/2 -> -3.962081345 | CN32: =+CZ32/2 -> -4.568225447 | CZ32: =-(CZ31+DD31)*DA30 -> -9.136450893
L33: =X33/2 -> -11.84793945 | X33: =-(X32+AB32+X31+AB31)*Y30 -> -23.6958789 | AB33: =-(X32+AB32+X31+AB31)*AB30 -> -20.05035907 | AN33: =+AB33/2 -> -10.02517954 | AR33: =BD33/2 -> 1.790700276 | BD33: =-(BD31+BH31+BD32+BH32)*BE30 -> 3.581400552 | BH33: =-(BD31+BH31+BD32+BH32)*BH30 -> 3.481917203 | BT33: =+BH33/2 -> 1.740958602 | BX33: =+CJ33/2 -> 4.838545402 | CJ33: =-(CJ32+CJ31+CN31+CN32)*CK30 -> 9.677090804 | CN33: =-(CJ32+CJ31+CN31+CN32)*CN30 -> 9.677090804 | CZ33: =+CN33/2 -> 4.838545402 | DJ33: m
K34: dm4 | L34: =-L33*L30 -> 2.995125037 | X34: =+L34/2 -> 1.497562519 | AA34: dm4 | AB34: =AN34/2 -> 0.648354428 | AN34: =-(AN33+AR33)*AO30 -> 1.296708856 | AQ34: dm4 | AR34: =-(AN33+AR33)*AR30 -> 2.40817359 | BD34: =+AR34/2 -> 1.204086795 | BG34: dm4 | BH34: =BT34/2 -> -0.846336881 | BT34: =-(BT33+BX33)*BU30 -> -1.692673762 | BW34: dm4 | BX34: =-(BT33+BX33)*BX30 -> -1.612070249 | CJ34: =+BX34/2 -> -0.8060351247 | CM34: dm4 | CN34: =+CZ34/2 -> -0.79807101 | CZ34: =-CZ33*DA30 -> -1.59614202 | DC34: dm4
L35: =X35/2 -> -0.2234447999 | X35: =-(X34+AB34)*Y30 -> -0.4468895998 | AB35: =-(X34+AB34)*AB30 -> -0.3781373537 | AN35: =+AB35/2 -> -0.1890686768 | AR35: =BD35/2 -> -0.04642306424 | BD35: =-(BD34+BH34)*BE30 -> -0.09284612848 | BH35: =-(BD34+BH34)*BH30 -> -0.09026706935 | BT35: =+BH35/2 -> -0.04513353468 | BX35: =+CJ35/2 -> 0.1989514827 | CJ35: =-(CJ34+CN34)*CK30 -> 0.3979029653 | CN35: =-(CJ34+CN34)*CN30 -> 0.3979029653 | CZ35: =+CN35/2 -> 0.1989514827 | DJ35: 3.5
K36: =H46*K49^3/12*10000*L5 -> 43.75 | L36: =-L35*L30 -> 0.05648620314 | X36: =+L36/2 -> 0.02824310157 | AA36: =X46*AA49^3/12*10000*L5 -> 43.75 | AB36: =AN36/2 -> 0.01854180553 | AN36: =-(AN35+AR35)*AO30 -> 0.03708361106 | AQ36: =AN46*AQ49^3/12*10000*L5 -> 43.75 | AR36: =-(AN35+AR35)*AR30 -> 0.06886956341 | BD36: =+AR36/2 -> 0.0344347817 | BG36: =BD46*BG49^3/12*10000*L5 -> 43.75 | BH36: =BT36/2 -> -0.01978595989 | BT36: =-(BT35+BX35)*BU30 -> -0.03957191979 | BW36: =BT46*BW49^3/12*10000*L5 -> 43.75 | BX36: =-(BT35+BX35)*BX30 -> -0.03768754265 | CJ36: =+BX36/2 -> -0.01884377133 | CM36: =CJ46*CM49^3/12*10000*L5 -> 43.75 | CN36: =+CZ36/2 -> -0.03281511229 | CZ36: =-CZ35*DA30 -> -0.06563022459 | DC36: =CZ46*DC49^3/12*10000*L5 -> 43.75
L37: =X37/2 -> -0.004871504566 | X37: =-(X36+AB36)*Y30 -> -0.009743009133 | AB37: =-(X36+AB36)*AB30 -> -0.008244084651 | AN37: =+AB37/2 -> -0.004122042325 | AR37: =BD37/2 -> -0.001900889893 | BD37: =-(BD36+BH36)*BE30 -> -0.003801779787 | BH37: =-(BD36+BH36)*BH30 -> -0.003696174793 | BT37: =+BH37/2 -> -0.001848087396 | BX37: =+CJ37/2 -> 0.006407064512 | CJ37: =-(CJ36+CN36)*CK30 -> 0.01281412902 | CN37: =-(CJ36+CN36)*CN30 -> 0.01281412902 | CZ37: =+CN37/2 -> 0.006407064512
L38: =-L37*L30 -> 0.001231502352 | X38: =+L38/2 -> 0.0006157511758 | AB38: =AN38/2 -> 0.00047422486 | AN38: =-(AN37+AR37)*AO30 -> 0.00094844972 | AR38: =-(AN37+AR37)*AR30 -> 0.001761406623 | BD38: =+AR38/2 -> 0.0008807033114 | BH38: =BT38/2 -> -0.0005864318147 | BT38: =-(BT37+BX37)*BU30 -> -0.001172863629 | BX38: =-(BT37+BX37)*BX30 -> -0.00111701298 | CJ38: =+BX38/2 -> -0.0005585064902 | CN38: =+CZ38/2 -> -0.001056782984 | CZ38: =-CZ37*DA30 -> -0.002113565967
K39: I = | L39: =X39/2 -> -0.0001134943631 | X39: =-(X38+AB38)*Y30 -> -0.0002269887263 | AA39: I = | AB39: =-(X38+AB38)*AB30 -> -0.0001920673838 | AN39: =+AB39/2 -> -9.603369188e-05 | AQ39: I = | AR39: =BD39/2 -> -3.818585012e-05 | BD39: =-(BD38+BH38)*BE30 -> -7.637170023e-05 | BG39: I = | BH39: =-(BD38+BH38)*BH30 -> -7.425026412e-05 | BT39: =+BH39/2 -> -3.712513206e-05 | BW39: I = | BX39: =+CJ39/2 -> 0.0002003385118 | CJ39: =-(CJ38+CN38)*CK30 -> 0.0004006770235 | CM39: I = | CN39: =-(CJ38+CN38)*CN30 -> 0.0004006770235 | CZ39: =+CN39/2 -> 0.0002003385118 | DC39: I =
L40: =-L39*L30 -> 2.869104877e-05 | AN40: =-(AN39+AR39)*AO30 -> 2.113596541e-05 | AR40: =-(AN39+AR39)*AR30 -> 3.925250718e-05 | BT40: =-(BT39+BX39)*BU30 -> -4.198903219e-05 | BX40: =-(BT39+BX39)*BX30 -> -3.998955447e-05 | CZ40: =-CZ39*DA30 -> -6.608777851e-05
L41: =SUM(L31:N40) -> 30.33793457 | X41: =SUM(X31:Z40) -> -66.47060094 | AB41: =SUM(AB31:AD40) -> 137.8598447 | AN41: =SUM(AN31:AP40) -> -141.4748905 | AR41: =SUM(AR31:AT40) -> 78.50421696 | BD41: =SUM(BD31:BF40) -> -23.05940394 | BH41: =SUM(BH31:BJ40) -> 16.50498502 | BT41: =SUM(BT31:BV40) -> -26.5038915 | BX41: =SUM(BX31:BZ40) -> 45.9547068 | CJ41: =SUM(CJ31:CL40) -> -45.18499017 | CN41: =SUM(CN31:CP40) -> 24.69180022 | CZ41: =SUM(CZ31:DB40) -> -25.7600585
I43: 1.2 | K43: m | S43: 5.5 | U43: m | AI43: 6.5 | AK43: m | AY43: 3.5 | BA43: m | BO43: 3.6 | BQ43: m | CE43: 3.78 | CG43: m | CU43: 3.78 | CW43: m | DE43: 1.5 | DG43: m | DP43: konsol yoksa konsol genişliğini sıfır girin.
H46: 0.6 | J46: m | X46: 0.6 | Z46: m | AN46: 0.6 | AP46: m | BD46: 0.6 | BF46: m | BT46: 0.6 | BV46: m | CJ46: 0.6 | CL46: m | CZ46: 0.6 | DB46: m
K49: 0.5 | M49: m | R49: 1.2 | T49: m | AA49: 0.5 | AC49: m | AH49: 1.2 | AJ49: m | AQ49: 0.5 | AS49: m | AX49: 1.2 | AZ49: m | BG49: 0.5 | BI49: m | BN49: 1.2 | BP49: m | BW49: 0.5 | BY49: m | CD49: 1.2 | CF49: m | CM49: 0.5 | CO49: m | CT49: 1.2 | CV49: m | DC49: 0.5 | DE49: m
O51: m | U51: 0.1 | W51: m | AE51: m | AK51: 0.1 | AM51: m | AU51: m | BA51: 0.1 | BC51: m | BK51: m | BQ51: 0.1 | BS51: m | CA51: m | CG51: 0.1 | CI51: m | CQ51: m | CW51: 0.1
O52: 0.7 | AE52: 0.7 | AU52: 0.7 | BK52: 0.7 | CA52: 0.7 | CQ52: 0.7
R56: 0.25 | T56: m | AH56: 0.25 | AJ56: m | AX56: 0.25 | AZ56: m | BN56: 0.25 | BP56: m | CD56: 0.25 | CF56: m | CT56: 0.25 | CV56: m
H59: =IF(N24<0,N24/2,"") ->  | M59: =IF(N24>0,N24/2,"") -> 0.04556363156 | X59: =IF(AD24<0,AD24/2,"") -> -17.11385982 | AC59: =IF(AD24>0,AD24/2,"") ->  | AN59: =IF(AT24<0,AT24/2,"") ->  | AS59: =IF(AT24>0,AT24/2,"") -> 15.09570941 | BD59: =IF(BJ24<0,BJ24/2,"") ->  | BI59: =IF(BJ24>0,BJ24/2,"") -> 1.571264809 | BT59: =IF(BZ24<0,BZ24/2,"") -> -4.662866681 | BY59: =IF(BZ24>0,BZ24/2,"") ->  | CJ59: =IF(CP24<0,CP24/2,"") ->  | CO59: =IF(CP24>0,CP24/2,"") -> 4.912751015 | CZ59: =IF(DF24<0,DF24/2,"") -> -5.259575016 | DE59: =IF(DF24>0,DF24/2,"") -> 
P64: moment diyagramı (KNm)
I67: =IF(H31=0,"",+H31) -> -30.528 | Y67: =+X41 -> -66.47060094 | AO67: =+AN41 -> -141.4748905 | BE67: =+BD41 -> -23.05940394 | BU67: =+BT41 -> -26.5038915 | CK67: =+CJ41 -> -45.18499017 | DA67: =+CZ41 -> -25.7600585
L68: =-L41 -> -30.33793457 | AB68: =-AB41 -> -137.8598447 | AR68: =-AR41 -> -78.50421696 | BH68: =-BH41 -> -16.50498502 | BX68: =-BX41 -> -45.9547068 | CN68: =-CN41 -> -24.69180022 | DD68: =IF(DD31=0,"",-DD31) -> -47.7
H69: =IF(H31=0,"",+I67-(H102+I103)/2*MIN(K49,K13)/2) -> -20.458 | M69: =-(+L41-(Q29*S43-((0.5*Q29*S43^2-X41-L41)/S43))*MIN(K13,K49)/3) -> -23.73286385 | X69: =-(-X41-((0.5*Q29*S43^2-X41-L41)/S43)*MIN(AA13,AA49)/3) -> -57.67567165 | AC69: =-(+AB41-(AG29*AI43-((0.5*AG29*AI43^2-AN41-AB41)/AI43))*MIN(AA13,AA49)/3) -> -114.9858716 | AN69: =-(-AN41-((0.5*AG29*AI43^2-AN41-AB41)/AI43)*MIN(AQ13,AQ49)/3) -> -118.4155304 | AS69: =-(+AR41-(AW29*AY43-((0.5*AW29*AY43^2-BD41-AR41)/AY43))*MIN(AQ13,AQ49)/3) -> -63.4973211 | BD69: =-(-BD41-((0.5*AW29*AY43^2-BD41-AR41)/AY43)*MIN(BG13,BG49)/3) -> -13.33296647 | BI69: =-(+BH41-(BM29*BO43-((0.5*BM29*BO43^2-BT41-BH41)/BO43))*MIN(BG13,BG49)/3) -> -11.92789736 | BT69: =-(-BT41-((0.5*BM29*BO43^2-BT41-BH41)/BO43)*MIN(BW13,BW49)/3) -> -21.00097917 | BY69: =-(+BX41-(CC29*CE43-((0.5*CC29*CE43^2-CJ41-BX41)/CE43))*MIN(BW13,BW49)/3) -> -32.56476868 | CJ69: =-(-CJ41-((0.5*CC29*CE43^2-CJ41-BX41)/CE43)*MIN(CM13,CM49)/3) -> -31.8629283 | CO69: =-(+CN41-(CS29*CU43-((0.5*CS29*CU43^2-CZ41-CN41)/CU43))*MIN(CM13,CM49)/3) -> -19.44690156 | CZ69: =-(-CZ41-((0.5*CS29*CU43^2-CZ41-CN41)/CU43)*MIN(DC13,DC49)/3) -> -20.42095717
DE70: =IF(DD31=0,"",DD68+(DD94+DE95)/2*MIN(DC13,DC49)/2) -> -34.45
G71: =IF(N24>0,-N24,"") -> -0.09112726312 | N71: =IF(N24<0,-N24,"") ->  | W71: =IF(AD24>0,-AD24,"") ->  | AD71: =IF(AD24<0,-AD24,"") -> 34.22771963 | AM71: =IF(AT24>0,-AT24,"") -> -30.19141883 | AT71: =IF(AT24<0,-AT24,"") ->  | BC71: =IF(BJ24>0,-BJ24,"") -> -3.142529618 | BJ71: =IF(BJ24<0,-BJ24,"") ->  | BS71: =IF(BZ24>0,-BZ24,"") ->  | BZ71: =IF(BZ24<0,-BZ24,"") -> 9.325733362 | CI71: =IF(CP24>0,-CP24,"") -> -9.825502031 | CP71: =IF(CP24<0,-CP24,"") ->  | CY71: =IF(DF24>0,-DF24,"") ->  | DF71: =IF(DF24<0,-DF24,"") -> 10.51915003
G72: =IF(G24<0,G24,"") ->  | N72: =IF(G24>0,G24,"") -> 0.09893817138 | W72: =IF(W24<0,W24,"") -> -37.16152417 | AD72: =IF(W24>0,W24,"") ->  | AM72: =IF(AM24<0,AM24,"") ->  | AT72: =IF(AM24>0,AM24,"") -> 32.77925472 | BC72: =IF(BC24<0,BC24,"") ->  | BJ72: =IF(BC24>0,BC24,"") -> 3.4118893 | BS72: =IF(BS24<0,BS24,"") -> -10.12508194 | BZ72: =IF(BS24>0,BS24,"") ->  | CI72: =IF(CI24<0,CI24,"") ->  | CP72: =IF(CI24>0,CI24,"") -> 10.66768792 | CY72: =IF(CY24<0,CY24,"") -> -11.42079146 | DF72: =IF(CY24>0,CY24,"") -> 
R75: =(((L41-(-X41))/S43+Q29*S43*0.5)^2/(2*Q29))-L41 -> 16.40523597 | AH75: =(((AB41-(-AN41))/AI43+AG29*AI43*0.5)^2/(2*AG29))-AB41 -> 84.26127995 | AX75: =(((AR41-(-BD41))/AY43+AW29*AY43*0.5)^2/(2*AW29))-AR41 -> 17.10249576 | BN75: =(((BH41-(-BT41))/BO43+BM29*BO43*0.5)^2/(2*BM29))-BH41 -> 5.941155841 | CD75: =(((BX41-(-CJ41))/CE43+CC29*CE43*0.5)^2/(2*CC29))-BX41 -> 30.15916048 | CT75: =(((CN41-(-CZ41))/CU43+CS29*CU43*0.5)^2/(2*CS29))-CN41 -> 4.782087639
H83: =IF(G24>0,-G24/2,"") -> -0.04946908569 | M83: =IF(G24<0,-G24/2,"") ->  | X83: =IF(W24>0,-W24/2,"") ->  | AC83: =IF(W24<0,-W24/2,"") -> 18.58076209 | AN83: =IF(AM24>0,-AM24/2,"") -> -16.38962736 | AS83: =IF(AM24<0,-AM24/2,"") ->  | BD83: =IF(BC24>0,-BC24/2,"") -> -1.70594465 | BI83: =IF(BC24<0,-BC24/2,"") ->  | BT83: =IF(BS24>0,-BS24/2,"") ->  | BY83: =IF(BS24<0,-BS24/2,"") -> 5.062540968 | CJ83: =IF(CI24>0,-CI24/2,"") -> -5.333843959 | CO83: =IF(CI24<0,-CI24/2,"") ->  | CZ83: =IF(CY24>0,-CY24/2,"") ->  | DE83: =IF(CY24<0,-CY24/2,"") -> 5.710395732
H86: =IF(N24<0,(N24+N24/2)/$DJ$23,"") ->  | M86: =IF(N24>0,(N24+N24/2)/$DJ$23,"") -> 0.03597128807 | X86: =IF(AD24<0,(AD24+AD24/2)/$DJ$23,"") -> -13.51094196 | AC86: =IF(AD24>0,(AD24+AD24/2)/$DJ$23,"") ->  | AN86: =IF(AT24<0,(AT24+AT24/2)/$DJ$23,"") ->  | AS86: =IF(AT24>0,(AT24+AT24/2)/$DJ$23,"") -> 11.91766533 | BD86: =IF(BJ24<0,(BJ24+BJ24/2)/$DJ$23,"") ->  | BI86: =IF(BJ24>0,(BJ24+BJ24/2)/$DJ$23,"") -> 1.240472218 | BT86: =IF(BZ24<0,(BZ24+BZ24/2)/$DJ$23,"") -> -3.681210538 | BY86: =IF(BZ24>0,(BZ24+BZ24/2)/$DJ$23,"") ->  | CJ86: =IF(CP24<0,(CP24+CP24/2)/$DJ$23,"") ->  | CO86: =IF(CP24>0,(CP24+CP24/2)/$DJ$23,"") -> 3.878487644 | CZ86: =IF(DF24<0,(DF24+DF24/2)/$DJ$23,"") -> -4.152296065 | DE86: =IF(DF24>0,(DF24+DF24/2)/$DJ$23,"") -> 
P91: kesme kuvveti diyagramı (KN)
L94: =Q29*S43+Y103 -> 39.6304243 | AB94: =AG29*AI43+AO103 -> 137.2438391 | AR94: =AW29*AY43+BE103 -> 90.04137515 | BH94: =BM29*BO43+BU103 -> 27.46252598 | BX94: =CC29*CE43+CK103 -> 80.33962874 | CN94: =CS29*CU43+DA103 -> 31.46939199 | DD94: =IF(DD31=0,"",DE29*DE43) -> 63.6
M95: =(Q29*S43-((0.5*Q29*S43^2-X41-L41)/S43))-Q29*MIN(K13,K49)/2 -> 35.4304243 | AC95: =(AG29*AI43-((0.5*AG29*AI43^2-AN41-AB41)/AI43))-AG29*MIN(AA13,AA49)/2 -> 126.6438391 | AS95: =(AW29*AY43-((0.5*AW29*AY43^2-BD41-AR41)/AY43))-AW29*MIN(AQ13,AQ49)/2 -> 79.44137515 | BI95: =(BM29*BO43-((0.5*BM29*BO43^2-BT41-BH41)/BO43))-BM29*MIN(BG13,BG49)/2 -> 23.26252598 | BY95: =(CC29*CE43-((0.5*CC29*CE43^2-CJ41-BX41)/CE43))-CC29*MIN(BW13,BW49)/2 -> 69.73962874 | CO95: =(CS29*CU43-((0.5*CS29*CU43^2-CZ41-CN41)/CU43))-CS29*MIN(CM13,CM49)/2 -> 27.26939199 | DE95: =IF(DD31=0,"",DE29*(DE43-MIN(DC49,DC13))) -> 42.4
P96: =(Q29*S43-((0.5*Q29*S43^2-X41-L41)/S43))-Q29*(MIN(K13,K49)/2+R28) -> 24.1744243 | S96: (d mesafede) | AF96: =(AG29*AI43-((0.5*AG29*AI43^2-AN41-AB41)/AI43))-AG29*(MIN(AA13,AA49)/2+AH28) -> 98.23583911 | AV96: =(AW29*AY43-((0.5*AW29*AY43^2-BD41-AR41)/AY43))-AW29*(MIN(AQ13,AQ49)/2+AX28) -> 51.03337515 | BL96: =(BM29*BO43-((0.5*BM29*BO43^2-BT41-BH41)/BO43))-BM29*(MIN(BG13,BG49)/2+BN28) -> 12.00652598 | CB96: =(CC29*CE43-((0.5*CC29*CE43^2-CJ41-BX41)/CE43))-CC29*(MIN(BW13,BW49)/2+CD28) -> 41.33162874 | CR96: =(CS29*CU43-((0.5*CS29*CU43^2-CZ41-CN41)/CU43))-CS29*(MIN(CM13,CM49)/2+CT28) -> 16.01339199
Q97: =(Q29*S43-((0.5*Q29*S43^2-X41-L41)/S43))-Q29*(MIN(K13,K49)/2+2*O52) -> 11.9104243 | T97: (2*h mesafede) | AG97: =(AG29*AI43-((0.5*AG29*AI43^2-AN41-AB41)/AI43))-AG29*(MIN(AA13,AA49)/2+2*AE52) -> 67.28383911 | AW97: =(AW29*AY43-((0.5*AW29*AY43^2-BD41-AR41)/AY43))-AW29*(MIN(AQ13,AQ49)/2+2*AU52) -> 20.08137515 | BM97: =(BM29*BO43-((0.5*BM29*BO43^2-BT41-BH41)/BO43))-BM29*(MIN(BG13,BG49)/2+2*BK52) -> -0.2574740226 | CC97: =(CC29*CE43-((0.5*CC29*CE43^2-CJ41-BX41)/CE43))-CC29*(MIN(BW13,BW49)/2+2*CA52) -> 10.37962874 | CS97: =(CS29*CU43-((0.5*CS29*CU43^2-CZ41-CN41)/CU43))-CS29*(MIN(CM13,CM49)/2+2*CQ52) -> 3.749391989
G98: =IF(H86<0,H86,"") ->  | N98: =IF(M86>0,M86,"") -> 0.03597128807 | W98: =IF(X86<0,X86,"") -> -13.51094196 | AD98: =IF(AC86>0,AC86,"") ->  | AM98: =IF(AN86<0,AN86,"") ->  | AT98: =IF(AS86>0,AS86,"") -> 11.91766533 | BC98: =IF(BD86<0,BD86,"") ->  | BJ98: =IF(BI86>0,BI86,"") -> 1.240472218 | BS98: =IF(BT86<0,BT86,"") -> -3.681210538 | BZ98: =IF(BY86>0,BY86,"") ->  | CI98: =IF(CJ86<0,CJ86,"") ->  | CP98: =IF(CO86>0,CO86,"") -> 3.878487644 | CY98: =IF(CZ86<0,CZ86,"") -> -4.152296065 | DF98: =IF(DE86>0,DE86,"") -> 
F99: =IF(H110<0,H110,"") ->  | O99: =IF(M110>0,M110,"") -> 0.04240207345 | V99: =IF(X110<0,X110,"") -> -15.9263675 | AE99: =IF(AC110>0,AC110,"") ->  | AL99: =IF(AN110<0,AN110,"") ->  | AU99: =IF(AS110>0,AS110,"") -> 14.04825202 | BB99: =IF(BD110<0,BD110,"") ->  | BK99: =IF(BI110>0,BI110,"") -> 1.462238271 | BR99: =IF(BT110<0,BT110,"") -> -4.33932083 | CA99: =IF(BY110>0,BY110,"") ->  | CH99: =IF(CJ110<0,CJ110,"") ->  | CQ99: =IF(CO110>0,CO110,"") -> 4.571866251 | CX99: =IF(CZ110<0,CZ110,"") -> -4.894624913 | DG99: =IF(DE110>0,DE110,"") -> 
O100: (d mesafede) | T100: =-(((0.5*Q29*S43^2-X41-L41)/S43)-Q29*(MIN(AA13,AA49)/2+2*O52)) -> -25.0495757 | AJ100: =-(((0.5*AG29*AI43^2-AN41-AB41)/AI43)-AG29*(MIN(AQ13,AQ49)/2+2*AE52)) -> -68.39616089 | AZ100: =-(((0.5*AW29*AY43^2-BD41-AR41)/AY43)-AW29*(MIN(BG13,BG49)/2+2*AU52)) -> 11.60137515 | BP100: =-(((0.5*BM29*BO43^2-BT41-BH41)/BO43)-BM29*(MIN(BW13,BW49)/2+2*BK52)) -> -5.297474023 | CF100: =-(((0.5*CC29*CE43^2-CJ41-BX41)/CE43)-CC29*(MIN(CM13,CM49)/2+2*CA52)) -> -9.972371262 | CV100: =-(((0.5*CS29*CU43^2-CZ41-CN41)/CU43)-CS29*(MIN(DC13,DC49)/2+2*CQ52)) -> -4.314608011
P101: (2*h mesafede) | U101: =-(((0.5*Q29*S43^2-X41-L41)/S43)-Q29*(MIN(AA13,AA49)/2+R28)) -> -37.3135757 | AK101: =-(((0.5*AG29*AI43^2-AN41-AB41)/AI43)-AG29*(MIN(AQ13,AQ49)/2+AH28)) -> -99.34816089 | BA101: =-(((0.5*AW29*AY43^2-BD41-AR41)/AY43)-AW29*(MIN(BG13,BG49)/2+AX28)) -> -19.35062485 | BQ101: =-(((0.5*BM29*BO43^2-BT41-BH41)/BO43)-BM29*(MIN(BW13,BW49)/2+BN28)) -> -17.56147402 | CG101: =-(((0.5*CC29*CE43^2-CJ41-BX41)/CE43)-CC29*(MIN(CM13,CM49)/2+CD28)) -> -40.92437126 | CW101: =-(((0.5*CS29*CU43^2-CZ41-CN41)/CU43)-CS29*(MIN(DC13,DC49)/2+CT28)) -> -16.57860801
H102: =IF(H31=0,"",-E29*(I43-MIN(K13,K49))) -> -29.68 | X102: =-(((0.5*Q29*S43^2-X41-L41)/S43)-Q29*MIN(AA13,AA49)/2) -> -48.5695757 | AN102: =-(((0.5*AG29*AI43^2-AN41-AB41)/AI43)-AG29*MIN(AQ13,AQ49)/2) -> -127.7561609 | BD102: =-(((0.5*AW29*AY43^2-BD41-AR41)/AY43)-AW29*MIN(BG13,BG49)/2) -> -47.75862485 | BT102: =-(((0.5*BM29*BO43^2-BT41-BH41)/BO43)-BM29*MIN(BW13,BW49)/2) -> -28.81747402 | CJ102: =-(((0.5*CC29*CE43^2-CJ41-BX41)/CE43)-CC29*MIN(CM13,CM49)/2) -> -69.33237126 | CZ102: =-(((0.5*CS29*CU43^2-CZ41-CN41)/CU43)-CS29*MIN(DC13,DC49)/2) -> -27.83460801
I103: =IF(H31=0,"",-E29*I43) -> -50.88 | Y103: =-(0.5*Q29*S43^2+(-X41)-L41)/S43 -> -52.7695757 | AO103: =-(0.5*AG29*AI43^2+(-AN41)-AB41)/AI43 -> -138.3561609 | BE103: =-(0.5*AW29*AY43^2+(-BD41)-AR41)/AY43 -> -58.35862485 | BU103: =-(0.5*BM29*BO43^2+(-BT41)-BH41)/BO43 -> -33.01747402 | CK103: =-(0.5*CC29*CE43^2+(-CJ41)-BX41)/CE43 -> -79.93237126 | DA103: =-(0.5*CS29*CU43^2+(-CZ41)-CN41)/CU43 -> -32.03460801
H110: =IF(G24<0,(G24+G24/2)/$DJ$35,"") ->  | M110: =IF(G24>0,(G24+G24/2)/$DJ$35,"") -> 0.04240207345 | X110: =IF(W24<0,(W24+W24/2)/$DJ$35,"") -> -15.9263675 | AC110: =IF(W24>0,(W24+W24/2)/$DJ$35,"") ->  | AN110: =IF(AM24<0,(AM24+AM24/2)/$DJ$35,"") ->  | AS110: =IF(AM24>0,(AM24+AM24/2)/$DJ$35,"") -> 14.04825202 | BD110: =IF(BC24<0,(BC24+BC24/2)/$DJ$35,"") ->  | BI110: =IF(BC24>0,(BC24+BC24/2)/$DJ$35,"") -> 1.462238271 | BT110: =IF(BS24<0,(BS24+BS24/2)/$DJ$35,"") -> -4.33932083 | BY110: =IF(BS24>0,(BS24+BS24/2)/$DJ$35,"") ->  | CJ110: =IF(CI24<0,(CI24+CI24/2)/$DJ$35,"") ->  | CO110: =IF(CI24>0,(CI24+CI24/2)/$DJ$35,"") -> 4.571866251 | CZ110: =IF(CY24<0,(CY24+CY24/2)/$DJ$35,"") -> -4.894624913 | DE110: =IF(CY24>0,(CY24+CY24/2)/$DJ$35,"") -> 
B113: ÇERÇEVE CROSS (5 AÇIKLIKLI) (rijitlik çarpanlı) (inş.müh. Gürcan BERBEROĞLU tel: 0532 366 02 04 www.betoncelik.com )
C114: pas payı d ' = | H114: 0.03 | J114: m | P114: Pd = 1,4 * g + 1,6 * q | AW114: dikkat sadece sarı hücrelere rakam giriniz.
C115: kiriş için etkin rijitlik çarpanı = | L115: 0.35 | P115: Not: kolon ve kiriş atalet momentleri etkin rijitlik çarpanı ile çarpılmıştır.
C116: kolon için etkin rijitlik çarpanı = | L116: 0.7
E117: sol konsol yükler | Q117: 1.ci açıklık yükler | AG117: 2.ci açıklık yükler | AW117: 3.cü açıklık yükler | BM117: 4.cü açıklık yükler | CC117: 5.ci açıklık yükler | CP117: sağ konsol yükler
E118: g= | F118: 12 | I118: KN/m | R118: g= | S118: 12 | V118: KN/m | AH118: g= | AI118: 12 | AL118: KN/m | AX118: g= | AY118: 12 | BB118: KN/m | BN118: g= | BO118: 12 | BR118: KN/m | CD118: g= | CE118: 12 | CH118: KN/m | CQ118: g= | CR118: 12 | CU118: KN/m
E119: q= | F119: 16 | I119: KN/m | R119: q= | S119: 16 | V119: KN/m | AH119: q= | AI119: 16 | AL119: KN/m | AX119: q= | AY119: 16 | BB119: KN/m | BN119: q= | BO119: 16 | BR119: KN/m | CD119: q= | CE119: 16 | CH119: KN/m | CQ119: q= | CR119: 16 | CU119: KN/m
C120: 1,4 * g = | F120: =1.4*F118 -> 16.8 | I120: KN/m | P120: 1,4 * g = | S120: =1.4*S118 -> 16.8 | V120: KN/m | AF120: 1,4 * g = | AI120: =1.4*AI118 -> 16.8 | AL120: KN/m | AV120: 1,4 * g = | AY120: =1.4*AY118 -> 16.8 | BB120: KN/m | BL120: 1,4 * g = | BO120: =1.4*BO118 -> 16.8 | BR120: KN/m | CB120: 1,4 * g = | CE120: =1.4*CE118 -> 16.8 | CH120: KN/m | CO120: 1,4 * g = | CR120: =1.4*CR118 -> 16.8 | CU120: KN/m
D121: Pd = | F121: =1.4*F118+1.6*F119 -> 42.4 | I121: KN/m | Q121: Pd = | S121: =1.4*S118+1.6*S119 -> 42.4 | V121: KN/m | AG121: Pd = | AI121: =1.4*AI118+1.6*AI119 -> 42.4 | AL121: KN/m | AW121: Pd = | AY121: =1.4*AY118+1.6*AY119 -> 42.4 | BB121: KN/m | BM121: Pd = | BO121: =1.4*BO118+1.6*BO119 -> 42.4 | BR121: KN/m | CC121: Pd = | CE121: =1.4*CE118+1.6*CE119 -> 42.4 | CH121: KN/m | CP121: Pd = | CR121: =1.4*CR118+1.6*CR119 -> 42.4 | CU121: KN/m
C122: g + g = | F122: =F119+F118 -> 28 | I122: KN/m | P122: g + g = | S122: =S119+S118 -> 28 | V122: KN/m | AF122: g + g = | AI122: =AI119+AI118 -> 28 | AL122: KN/m | AV122: g + g = | AY122: =AY119+AY118 -> 28 | BB122: KN/m | BL122: g + g = | BO122: =BO119+BO118 -> 28 | BR122: KN/m | CB122: g + g = | CE122: =CE119+CE118 -> 28 | CH122: KN/m | CO122: g + g = | CR122: =CR119+CR118 -> 28 | CU122: KN/m
C123: 0,9 * g = | F123: =0.9*F118 -> 10.8 | I123: KN/m | P123: 0,9 * g = | S123: =0.9*S118 -> 10.8 | V123: KN/m | AF123: 0,9 * g = | AI123: =0.9*AI118 -> 10.8 | AL123: KN/m | AV123: 0,9 * g = | AY123: =0.9*AY118 -> 10.8 | BB123: KN/m | BL123: 0,9 * g = | BO123: =0.9*BO118 -> 10.8 | BR123: KN/m | CB123: 0,9 * g = | CE123: =0.9*CE118 -> 10.8 | CH123: KN/m | CO123: 0,9 * g = | CR123: =0.9*CR118 -> 10.8 | CU123: KN/m
K124: 0.5 | M124: m | AA124: 0.5 | AC124: m | AQ124: 0.5 | AS124: m | BG124: 0.5 | BI124: m | BW124: 0.5 | BY124: m | CM124: 0.5 | CO124: m
H126: 0.6 | J126: m | X126: 0.6 | Z126: m | AN126: 0.6 | AP126: m | BD126: 0.6 | BF126: m | BT126: 0.6 | BV126: m | CJ126: 0.6 | CL126: m
G130: =-(H142+L142)*K142 -> -4.598225075 | N130: =-(H142+L142)*K138 -> -4.235207306 | W130: =-(X143+AB143+X142+AB142)*AA142 -> -37.11790159 | AD130: =-(X143+AB143+X142+AB142)*AA138 -> -34.18754093 | AM130: =-(AN142+AR142)*AQ142 -> 37.83524356 | AT130: =-(AN142+AR142)*AQ138 -> 34.84825065 | BC130: =-(BD142+BH142+BD143+BH143)*BG142 -> -13.03071211 | BJ130: =-(BD142+BH142+BD143+BH143)*BG138 -> -12.00197168 | BS130: =-(BT142+BX142)*BW142 -> 6.681419808 | BZ130: =-(BT142+BX142)*BW138 -> 6.153939297 | CI130: =-(CJ142+CJ143+CN142)*CM142 -> -10.7632953 | CP130: =-(CJ142+CJ143+CN142)*CM138 -> -9.913561465
G131: =-L144*K142 -> 4.691649414 | K131: dm4 | N131: =-L144*K138 -> 4.321256039 | W131: =-(X145+AB145)*AA142 -> -0.9138932508 | AA131: dm4 | AD131: =-(X145+AB145)*AA138 -> -0.8417437837 | AM131: =-(AN144+AR144)*AQ142 -> 4.827951225 | AQ131: dm4 | AT131: =-(AN144+AR144)*AQ138 -> 4.446797181 | BC131: =-(BD145+BH145)*BG142 -> -1.004310291 | BG131: dm4 | BJ131: =-(BD145+BH145)*BG138 -> -0.9250226364 | BS131: =-(BT144+BX144)*BW142 -> 2.994749498 | BW131: dm4 | BZ131: =-(BT144+BX144)*BW138 -> 2.758321906 | CI131: =-CJ145*CM142 -> -0.4939548063 | CM131: dm4 | CP131: =-CJ145*CM138 -> -0.4549583742
G132: =-L146*K142 -> 0.1155147934 | N132: =-L146*K138 -> 0.1063952045 | W132: =-(X147+AB147)*AA142 -> -0.0313067519 | AD132: =-(X147+AB147)*AA138 -> -0.02883516622 | AM132: =-(AN146+AR146)*AQ142 -> 0.2188120752 | AT132: =-(AN146+AR146)*AQ138 -> 0.2015374377 | BC132: =-(BD147+BH147)*BG142 -> -0.05232634054 | BJ132: =-(BD147+BH147)*BG138 -> -0.04819531366 | BS132: =-(BT146+BX146)*BW142 -> 0.1896996738 | BZ132: =-(BT146+BX146)*BW138 -> 0.1747233837 | CI132: =-CJ147*CM142 -> -0.03128911639 | CP132: =-CJ147*CM138 -> -0.02881892299 | CT132: m
G133: =-L148*K142 -> 0.003957128446 | K133: =H126*K124^3/12*10000*L116 -> 43.75 | N133: =-L148*K138 -> 0.003644723568 | W133: =-(X149+AB149)*AA142 -> -0.001303356628 | AA133: =X126*AA124^3/12*10000*L116 -> 43.75 | AD133: =-(X149+AB149)*AA138 -> -0.001200460052 | AM133: =-(AN148+AR148)*AQ142 -> 0.01011640497 | AQ133: =AN126*AQ124^3/12*10000*L116 -> 43.75 | AT133: =-(AN148+AR148)*AQ138 -> 0.009317741419 | BC133: =-(BD149+BH149)*BG142 -> -0.002645492998 | BG133: =BD126*BG124^3/12*10000*L116 -> 43.75 | BJ133: =-(BD149+BH149)*BG138 -> -0.002436638288 | BS133: =-(BT148+BX148)*BW142 -> 0.01056399368 | BW133: =BT126*BW124^3/12*10000*L116 -> 43.75 | BZ133: =-(BT148+BX148)*BW138 -> 0.009729994175 | CI133: =-CJ149*CM142 -> -0.001742428024 | CM133: =CJ126*CM124^3/12*10000*L116 -> 43.75 | CP133: =-CJ149*CM138 -> -0.001604867917
G134: =-L150*K142 -> 0.0001647424046 | N134: =-L150*K138 -> 0.0001517364253 | AM134: =-(AN150+AR150)*AQ142 -> 0.0004894590295 | AT134: =-(AN150+AR150)*AQ138 -> 0.0004508175271 | BS134: =-(BT150+BX150)*BW142 -> 0.0005537554929 | BZ134: =-(BT150+BX150)*BW138 -> 0.0005100379539 | CT134: 3.8
G135: =SUM(G130:I134) -> 0.2130610032 | N135: =SUM(N130:P134) -> 0.1962403977 | W135: =SUM(W130:Y134) -> -38.06440494 | AD135: =SUM(AD130:AF134) -> -35.05932034 | AM135: =SUM(AM130:AO134) -> 42.89261273 | AT135: =SUM(AT130:AV134) -> 39.50635383 | BC135: =SUM(BC130:BE134) -> -14.08999423 | BJ135: =SUM(BJ130:BL134) -> -12.97762627 | BS135: =SUM(BS130:BU134) -> 9.87698673 | BZ135: =SUM(BZ130:CB134) -> 9.097224619 | CI135: =SUM(CI130:CK134) -> -11.29028166 | CP135: =SUM(CP130:CR134) -> -10.39894363
K136: I = | AA136: I = | AQ136: I = | BG136: I = | BW136: I = | CM136: I =
K138: =(K133/CT134)/(K133/CT134+K147/CT146+R142/S154) -> 0.3582479535 | AA138: =(AA133/CT134)/(R142/S154+AA133/CT134+AA147/CT146+AH142/AI154) -> 0.295120192 | AQ138: =(AQ133/CT134)/(AH142/AI154+AQ133/CT134+AQ147/CT146+AX142/AY154) -> 0.2637354994 | BG138: =(BG133/CT134)/(AX142/AY154+BG133/CT134+BG147/CT146+BN142/BO154) -> 0.2340459889 | BW138: =(BW133/CT134)/(BN142/BO154+BW133/CT134+BW147/CT146+CD142/CE154) -> 0.2386335515 | CM138: =(CM133/CT134)/(CD142/CE154+CM133/CT134+CM147/CT146) -> 0.3212901471
E139: Pd = | Q139: d= | R139: =+O163-$H$114 -> 0.67 | T139: m | AG139: d= | AH139: =+AE163-$H$114 -> 0.67 | AJ139: m | AW139: d= | AX139: =+AU163-$H$114 -> 0.67 | AZ139: m | BM139: d= | BN139: =+BK163-$H$114 -> 0.67 | BP139: m | CC139: d= | CD139: =+CA163-$H$114 -> 0.67 | CF139: m | CO139: Pd =
E140: =IF(E139="g =",F118,IF(E139="Pd =",F121,IF(E139="1,4 * g =",F120,IF(E139="g + q =",F122,IF(E139="0,9 * g =",F123,"hatalı"))))) -> 42.4 | H140: KN/m | N140: 1,4 * g = | Q140: =IF(N140="g =",S118,IF(N140="Pd =",S121,IF(N140="1,4 * g =",S120,IF(N140="g + q =",S122,IF(N140="0,9 * g =",S123,"hatalı"))))) -> 16.8 | T140: KN/m | AD140: Pd = | AG140: =IF(AD140="g =",AI118,IF(AD140="Pd =",AI121,IF(AD140="1,4 * g =",AI120,IF(AD140="g + q =",AI122,IF(AD140="0,9 * g =",AI123,"hatalı"))))) -> 42.4 | AJ140: KN/m | AT140: 1,4 * g = | AW140: =IF(AT140="g =",AY118,IF(AT140="Pd =",AY121,IF(AT140="1,4 * g =",AY120,IF(AT140="g + q =",AY122,IF(AT140="0,9 * g =",AY123,"hatalı"))))) -> 16.8 | AZ140: KN/m | BJ140: Pd = | BM140: =IF(BJ140="g =",BO118,IF(BJ140="Pd =",BO121,IF(BJ140="1,4 * g =",BO120,IF(BJ140="g + q =",BO122,IF(BJ140="0,9 * g =",BO123,"hatalı"))))) -> 42.4 | BP140: KN/m | BZ140: 1,4 * g = | CC140: =IF(BZ140="g =",CE118,IF(BZ140="Pd =",CE121,IF(BZ140="1,4 * g =",CE120,IF(BZ140="g + q =",CE122,IF(BZ140="0,9 * g =",CE123,"hatalı"))))) -> 16.8 | CF140: KN/m | CO140: =IF(CO139="g =",CR118,IF(CO139="Pd =",CR121,IF(CO139="1,4 * g =",CR120,IF(CO139="g + q =",CR122,IF(CO139="0,9 * g =",CR123,"hatalı"))))) -> 42.4 | CR140: KN/m
I141: 0 | L141: =(R142/S154)/(K133/CT134+K147/CT146+R142/S154) -> 0.2527971256 | Y141: =(R142/S154)/(R142/S154+AA133/CT134+AA147/CT146+AH142/AI154) -> 0.2082511164 | AB141: =(AH142/AI154)/(R142/S154+AA133/CT134+AA147/CT146+AH142/AI154) -> 0.1762124831 | AO141: =(AH142/AI154)/(AH142/AI154+AQ133/CT134+AQ147/CT146+AX142/AY154) -> 0.1574730855 | AR141: =(AX142/AY154)/(AH142/AI154+AQ133/CT134+AQ147/CT146+AX142/AY154) -> 0.2924500158 | BE141: =(AX142/AY154)/(AX142/AY154+BG133/CT134+BG147/CT146+BN142/BO154) -> 0.2595280246 | BH141: =(BN142/BO154)/(AX142/AY154+BG133/CT134+BG147/CT146+BN142/BO154) -> 0.2523189128 | BU141: =(BN142/BO154)/(BN142/BO154+BW133/CT134+BW147/CT146+CD142/CE154) -> 0.257264645 | BX141: =(CD142/CE154)/(BN142/BO154+BW133/CT134+BW147/CT146+CD142/CE154) -> 0.2450139476 | CK141: =(CD142/CE154)/(CD142/CE154+CM133/CT134+CM147/CT146) -> 0.3298805503 | CN141: 0
H142: =-E140*I154*I154/2 -> -30.528 | K142: =(K147/CT146)/(K133/CT134+K147/CT146+R142/S154) -> 0.3889549209 | L142: =Q140*S154^2/12 -> 42.35 | Q142: I= | R142: =(R160*U162^3/12+U162*R160*(((U162*R160*U162/2+R167*(O163-U162)*((O163-U162)/2+U162))/(R160*U162+(O163-U162)*R167))-U162/2)^2+R167*(O163-U162)^3/12+R167*(O163-U162)*(O163-((U162*R160*U162/2+R167*(O163-U162)*((O163-U162)/2+U162))/(R160*U162+(O163-U162)*R167))-(O163-U162)/2)^2)*10000*L115 -> 44.68333333 | U142: dm4 | X142: =-Q140*S154^2/12 -> -42.35 | AA142: =(AA147/CT146)/(R142/S154+AA133/CT134+AA147/CT146+AH142/AI154) -> 0.3204162085 | AB142: =AG140*AI154^2/12 -> 149.2833333 | AG142: I= | AH142: =(AH160*AK162^3/12+AK162*AH160*(((AK162*AH160*AK162/2+AH167*(AE163-AK162)*((AE163-AK162)/2+AK162))/(AH160*AK162+(AE163-AK162)*AH167))-AK162/2)^2+AH167*(AE163-AK162)^3/12+AH167*(AE163-AK162)*(AE163-((AK162*AH160*AK162/2+AH167*(AE163-AK162)*((AE163-AK162)/2+AK162))/(AH160*AK162+(AE163-AK162)*AH167))-(AE163-AK162)/2)^2)*10000*L115 -> 44.68333333 | AK142: dm4 | AN142: =-AG140*AI154^2/12 -> -149.2833333 | AQ142: =(AQ147/CT146)/(AH142/AI154+AQ133/CT134+AQ147/CT146+AX142/AY154) -> 0.2863413993 | AR142: =AW140*AY154^2/12 -> 17.15 | AW142: I= | AX142: =(AX160*BA162^3/12+BA162*AX160*(((BA162*AX160*BA162/2+AX167*(AU163-BA162)*((AU163-BA162)/2+BA162))/(AX160*BA162+(AU163-BA162)*AX167))-BA162/2)^2+AX167*(AU163-BA162)^3/12+AX167*(AU163-BA162)*(AU163-((BA162*AX160*BA162/2+AX167*(AU163-BA162)*((AU163-BA162)/2+BA162))/(AX160*BA162+(AU163-BA162)*AX167))-(AU163-BA162)/2)^2)*10000*L115 -> 44.68333333 | BA142: dm4 | BD142: =-AW140*AY154^2/12 -> -17.15 | BG142: =(BG147/CT146)/(AX142/AY154+BG133/CT134+BG147/CT146+BN142/BO154) -> 0.2541070737 | BH142: =BM140*BO154^2/12 -> 45.792 | BM142: I= | BN142: =(BN160*BQ162^3/12+BQ162*BN160*(((BQ162*BN160*BQ162/2+BN167*(BK163-BQ162)*((BK163-BQ162)/2+BQ162))/(BN160*BQ162+(BK163-BQ162)*BN167))-BQ162/2)^2+BN167*(BK163-BQ162)^3/12+BN167*(BK163-BQ162)*(BK163-((BQ162*BN160*BQ162/2+BN167*(BK163-BQ162)*((BK163-BQ162)/2+BQ162))/(BN160*BQ162+(BK163-BQ162)*BN167))-(BK163-BQ162)/2)^2)*10000*L115 -> 44.68333333 | BQ142: dm4 | BT142: =-BM140*BO154^2/12 -> -45.792 | BW142: =(BW147/CT146)/(BN142/BO154+BW133/CT134+BW147/CT146+CD142/CE154) -> 0.2590878559 | BX142: =CC140*CE154^2/12 -> 20.00376 | CC142: I= | CD142: =(CD160*CG162^3/12+CG162*CD160*(((CG162*CD160*CG162/2+CD167*(CA163-CG162)*((CA163-CG162)/2+CG162))/(CD160*CG162+(CA163-CG162)*CD167))-CG162/2)^2+CD167*(CA163-CG162)^3/12+CD167*(CA163-CG162)*(CA163-((CG162*CD160*CG162/2+CD167*(CA163-CG162)*((CA163-CG162)/2+CG162))/(CD160*CG162+(CA163-CG162)*CD167))-(CA163-CG162)/2)^2)*10000*L115 -> 44.68333333 | CG142: dm4 | CJ142: =-CC140*CE154^2/12 -> -20.00376 | CM142: =(CM147/CT146)/(CD142/CE154+CM133/CT134+CM147/CT146) -> 0.3488293026 | CN142: =CO140*CO154*CO154/2 -> 47.7
L143: =-(H142+L142)*L141 -> -2.988567619 | X143: =+L143/2 -> -1.494283809 | AB143: =AN143/2 -> 10.40372185 | AN143: =-(AN142+AR142)*AO141 -> 20.80744369 | AR143: =-(AN142+AR142)*AR141 -> 38.64239543 | BD143: =+AR143/2 -> 19.32119771 | BH143: =BT143/2 -> 3.317201205 | BT143: =-(BT142+BX142)*BU141 -> 6.63440241 | BX143: =-(BT142+BX142)*BX141 -> 6.318478485 | CJ143: =+BX143/2 -> 3.159239243
L144: =X144/2 -> -12.06219323 | X144: =-(X143+AB143+X142+AB142)*Y141 -> -24.12438646 | AB144: =-(X143+AB143+X142+AB142)*AB141 -> -20.41294239 | AN144: =+AB144/2 -> -10.20647119 | AR144: =BD144/2 -> -6.654350316 | BD144: =-(BD142+BH142+BD143+BH143)*BE141 -> -13.30870063 | BH144: =-(BD142+BH142+BD143+BH143)*BH141 -> -12.9390145 | BT144: =+BH144/2 -> -6.469507251 | BX144: =CJ144/2 -> -5.089311237 | CJ144: =-(CJ142+CJ143+CN142)*CK141 -> -10.17862247 | CT144: m
K145: dm4 | L145: =-L144*L141 -> 3.049287777 | X145: =+L145/2 -> 1.524643888 | AA145: dm4 | AB145: =AN145/2 -> 1.327562793 | AN145: =-(AN144+AR144)*AO141 -> 2.655125587 | AQ145: dm4 | AR145: =-(AN144+AR144)*AR141 -> 4.930947518 | BD145: =+AR145/2 -> 2.465473759 | BG145: dm4 | BH145: =BT145/2 -> 1.486837668 | BT145: =-(BT144+BX144)*BU141 -> 2.973675335 | BW145: dm4 | BX145: =-(BT144+BX144)*BX141 -> 2.832071748 | CJ145: =+BX145/2 -> 1.416035874 | CM145: dm4
L146: =X146/2 -> -0.2969876128 | X146: =-(X145+AB145)*Y141 -> -0.5939752256 | AB146: =-(X145+AB145)*AB141 -> -0.5025944216 | AN146: =+AB146/2 -> -0.2512972108 | AR146: =BD146/2 -> -0.5128677886 | BD146: =-(BD145+BH145)*BE141 -> -1.025735577 | BH146: =-(BD145+BH145)*BH141 -> -0.9972429222 | BT146: =+BH146/2 -> -0.4986214611 | BX146: =CJ146/2 -> -0.2335613467 | CJ146: =-CJ145*CK141 -> -0.4671226934 | CT146: 3.5
K147: =H157*K160^3/12*10000*L116 -> 43.75 | L147: =-L146*L141 -> 0.07507761484 | X147: =+L147/2 -> 0.03753880742 | AA147: =X157*AA160^3/12*10000*L116 -> 43.75 | AB147: =AN147/2 -> 0.06016771012 | AN147: =-(AN146+AR146)*AO141 -> 0.1203354202 | AQ147: =AN157*AQ160^3/12*10000*L116 -> 43.75 | AR147: =-(AN146+AR146)*AR141 -> 0.2234800662 | BD147: =+AR147/2 -> 0.1117400331 | BG147: =BD157*BG160^3/12*10000*L116 -> 43.75 | BH147: =BT147/2 -> 0.09418237507 | BT147: =-(BT146+BX146)*BU141 -> 0.1883647501 | BW147: =BT157*BW160^3/12*10000*L116 -> 43.75 | BX147: =-(BT146+BX146)*BX141 -> 0.1793950001 | CJ147: =+BX147/2 -> 0.08969750007 | CM147: =CJ157*CM160^3/12*10000*L116 -> 43.75
L148: =X148/2 -> -0.01017374568 | X148: =-(X147+AB147)*Y141 -> -0.02034749136 | AB148: =-(X147+AB147)*AB141 -> -0.01721710807 | AN148: =+AB148/2 -> -0.008608554035 | AR148: =BD148/2 -> -0.0267213179 | BD148: =-(BD147+BH147)*BE141 -> -0.05344263581 | BH148: =-(BD147+BH147)*BH141 -> -0.05195811815 | BT148: =+BH148/2 -> -0.02597905907 | BX148: =CJ148/2 -> -0.01479473034 | CJ148: =-CJ147*CK141 -> -0.02958946069
L149: =-L148*L141 -> 0.002571893664 | X149: =+L149/2 -> 0.001285946832 | AB149: =AN149/2 -> 0.002781751972 | AN149: =-(AN148+AR148)*AO141 -> 0.005563503943 | AR149: =-(AN148+AR148)*AR141 -> 0.01033222161 | BD149: =+AR149/2 -> 0.005166110804 | BH149: =BT149/2 -> 0.00524482723 | BT149: =-(BT148+BX148)*BU141 -> 0.01048965446 | BX149: =-(BT148+BX148)*BX141 -> 0.009990147106 | CJ149: =+BX149/2 -> 0.004995073553
K150: I = | L150: =X150/2 -> -0.0004235514084 | X150: =-(X149+AB149)*Y141 -> -0.0008471028168 | AA150: I = | AB150: =-(X149+AB149)*AB141 -> -0.0007167793066 | AN150: =+AB150/2 -> -0.0003583896533 | AQ150: I = | AR150: =BD150/2 -> -0.001350965091 | BD150: =-(BD149+BH149)*BE141 -> -0.002701930182 | BG150: I = | BH150: =-(BD149+BH149)*BH141 -> -0.002626876566 | BT150: =+BH150/2 -> -0.001313438283 | BW150: I = | BX150: =CJ150/2 -> -0.0008238888063 | CJ150: =-CJ149*CK141 -> -0.001647777613 | CM150: I =
L151: =-L150*L141 -> 0.0001070725786 | AN151: =-(AN150+AR150)*AO141 -> 0.0002691773657 | AR151: =-(AN150+AR150)*AR141 -> 0.0004999008221 | BT151: =-(BT150+BX150)*BU141 -> 0.0005498586949 | BX151: =-(BT150+BX150)*BX141 -> 0.0005236749476
L152: =SUM(L142:N151) -> 30.1186986 | X152: =SUM(X142:Z151) -> -67.02037145 | AB152: =SUM(AB142:AD151) -> 140.1440967 | AN152: =SUM(AN142:AP151) -> -136.1613313 | AR152: =SUM(AR142:AT151) -> 53.76236475 | BD152: =SUM(BD142:BF151) -> -9.637003158 | BH152: =SUM(BH142:BJ151) -> 36.70462365 | BT152: =SUM(BT142:BV151) -> -42.9799392 | BX152: =SUM(BX142:BZ151) -> 24.00572785 | CJ152: =SUM(CJ142:CL151) -> -26.01077471
I154: 1.2 | K154: m | S154: 5.5 | U154: m | AI154: 6.5 | AK154: m | AY154: 3.5 | BA154: m | BO154: 3.6 | BQ154: m | CE154: 3.78 | CG154: m | CO154: 1.5 | CQ154: m | CZ154: konsol yoksa konsol genişliğini sıfır girin.
H157: 0.6 | J157: m | X157: 0.6 | Z157: m | AN157: 0.6 | AP157: m | BD157: 0.6 | BF157: m | BT157: 0.6 | BV157: m | CJ157: 0.6 | CL157: m
K160: 0.5 | M160: m | R160: 1.2 | T160: m | AA160: 0.5 | AC160: m | AH160: 1.2 | AJ160: m | AQ160: 0.5 | AS160: m | AX160: 1.2 | AZ160: m | BG160: 0.5 | BI160: m | BN160: 1.2 | BP160: m | BW160: 0.5 | BY160: m | CD160: 1.2 | CF160: m | CM160: 0.5 | CO160: m
O162: m | U162: 0.1 | W162: m | AE162: m | AK162: 0.1 | AM162: m | AU162: m | BA162: 0.1 | BC162: m | BK162: m | BQ162: 0.1 | BS162: m | CA162: m | CG162: 0.1 | CI162: m
O163: 0.7 | AE163: 0.7 | AU163: 0.7 | BK163: 0.7 | CA163: 0.7
R167: 0.25 | T167: m | AH167: 0.25 | AJ167: m | AX167: 0.25 | AZ167: m | BN167: 0.25 | BP167: m | CD167: 0.25 | CF167: m
H170: =IF(N135<0,N135/2,"") ->  | M170: =IF(N135>0,N135/2,"") -> 0.09812019885 | X170: =IF(AD135<0,AD135/2,"") -> -17.52966017 | AC170: =IF(AD135>0,AD135/2,"") ->  | AN170: =IF(AT135<0,AT135/2,"") ->  | AS170: =IF(AT135>0,AT135/2,"") -> 19.75317691 | BD170: =IF(BJ135<0,BJ135/2,"") -> -6.488813133 | BI170: =IF(BJ135>0,BJ135/2,"") ->  | BT170: =IF(BZ135<0,BZ135/2,"") ->  | BY170: =IF(BZ135>0,BZ135/2,"") -> 4.54861231 | CJ170: =IF(CP135<0,CP135/2,"") -> -5.199471815 | CO170: =IF(CP135>0,CP135/2,"") -> 
P175: moment diyagramı (KNm)
I178: =IF(H142=0,"",+H142) -> -30.528 | Y178: =+X152 -> -67.02037145 | AO178: =+AN152 -> -136.1613313 | BE178: =+BD152 -> -9.637003158 | BU178: =+BT152 -> -42.9799392 | CK178: =+CJ152 -> -26.01077471
L179: =-L152 -> -30.1186986 | AB179: =-AB152 -> -140.1440967 | AR179: =-AR152 -> -53.76236475 | BH179: =-BH152 -> -36.70462365 | BX179: =-BX152 -> -24.00572785 | CN179: =IF(CN142=0,"",-CN142) -> -47.7
H180: =IF(H142=0,"",+I178-(H213+I214)/2*MIN(K160,K124)/2) -> -20.458 | M180: =-(+L152-(Q140*S154-((0.5*Q140*S154^2-X152-L152)/S154))*MIN(K124,K160)/3) -> -23.53693111 | X180: =-(-X152-((0.5*Q140*S154^2-X152-L152)/S154)*MIN(AA124,AA160)/3) -> -58.20213894 | AC180: =-(+AB152-(AG140*AI154-((0.5*AG140*AI154^2-AN152-AB152)/AI154))*MIN(AA124,AA160)/3) -> -117.0753079 | AN180: =-(-AN152-((0.5*AG140*AI154^2-AN152-AB152)/AI154)*MIN(AQ124,AQ160)/3) -> -113.2967868 | AS180: =-(+AR152-(AW140*AY154-((0.5*AW140*AY154^2-BD152-AR152)/AY154))*MIN(AQ124,AQ160)/3) -> -46.76115705 | BD180: =-(-BD152-((0.5*AW140*AY154^2-BD152-AR152)/AY154)*MIN(BG124,BG160)/3) -> -6.838210853 | BI180: =-(+BH152-(BM140*BO154-((0.5*BM140*BO154^2-BT152-BH152)/BO154))*MIN(BG124,BG160)/3) -> -24.27514752 | BT180: =-(-BT152-((0.5*BM140*BO154^2-BT152-BH152)/BO154)*MIN(BW124,BW160)/3) -> -29.96941533 | BY180: =-(+BX152-(CC140*CE154-((0.5*CC140*CE154^2-CJ152-BX152)/CE154))*MIN(BW124,BW160)/3) -> -18.8021338 | CJ180: =-(-CJ152-((0.5*CC140*CE154^2-CJ152-BX152)/CE154)*MIN(CM124,CM160)/3) -> -20.63036877
CO181: =IF(CN142=0,"",CN179+(CN205+CO206)/2*MIN(CM124,CM160)/2) -> -34.45
G182: =IF(N135>0,-N135,"") -> -0.1962403977 | N182: =IF(N135<0,-N135,"") ->  | W182: =IF(AD135>0,-AD135,"") ->  | AD182: =IF(AD135<0,-AD135,"") -> 35.05932034 | AM182: =IF(AT135>0,-AT135,"") -> -39.50635383 | AT182: =IF(AT135<0,-AT135,"") ->  | BC182: =IF(BJ135>0,-BJ135,"") ->  | BJ182: =IF(BJ135<0,-BJ135,"") -> 12.97762627 | BS182: =IF(BZ135>0,-BZ135,"") -> -9.097224619 | BZ182: =IF(BZ135<0,-BZ135,"") ->  | CI182: =IF(CP135>0,-CP135,"") ->  | CP182: =IF(CP135<0,-CP135,"") -> 10.39894363
G183: =IF(G135<0,G135,"") ->  | N183: =IF(G135>0,G135,"") -> 0.2130610032 | W183: =IF(W135<0,W135,"") -> -38.06440494 | AD183: =IF(W135>0,W135,"") ->  | AM183: =IF(AM135<0,AM135,"") ->  | AT183: =IF(AM135>0,AM135,"") -> 42.89261273 | BC183: =IF(BC135<0,BC135,"") -> -14.08999423 | BJ183: =IF(BC135>0,BC135,"") ->  | BS183: =IF(BS135<0,BS135,"") ->  | BZ183: =IF(BS135>0,BS135,"") -> 9.87698673 | CI183: =IF(CI135<0,CI135,"") -> -11.29028166 | CP183: =IF(CI135>0,CI135,"") -> 
R186: =(((L152-(-X152))/S154+Q140*S154*0.5)^2/(2*Q140))-L152 -> 16.29522635 | AH186: =(((AB152-(-AN152))/AI154+AG140*AI154*0.5)^2/(2*AG140))-AB152 -> 85.77671336 | AX186: =(((AR152-(-BD152))/AY154+AW140*AY154*0.5)^2/(2*AW140))-AR152 -> -1.244247764 | BN186: =(((BH152-(-BT152))/BO154+BM140*BO154*0.5)^2/(2*BM140))-BH152 -> 28.88155051 | CD186: =(((BX152-(-CJ152))/CE154+CC140*CE154*0.5)^2/(2*CC140))-BX152 -> 5.005762585
H194: =IF(G135>0,-G135/2,"") -> -0.1065305016 | M194: =IF(G135<0,-G135/2,"") ->  | X194: =IF(W135>0,-W135/2,"") ->  | AC194: =IF(W135<0,-W135/2,"") -> 19.03220247 | AN194: =IF(AM135>0,-AM135/2,"") -> -21.44630636 | AS194: =IF(AM135<0,-AM135/2,"") ->  | BD194: =IF(BC135>0,-BC135/2,"") ->  | BI194: =IF(BC135<0,-BC135/2,"") -> 7.044997116 | BT194: =IF(BS135>0,-BS135/2,"") -> -4.938493365 | BY194: =IF(BS135<0,-BS135/2,"") ->  | CJ194: =IF(CI135>0,-CI135/2,"") ->  | CO194: =IF(CI135<0,-CI135/2,"") -> 5.645140828
H197: =IF(N135<0,(N135+N135/2)/$CT$134,"") ->  | M197: =IF(N135>0,(N135+N135/2)/$CT$134,"") -> 0.07746331488 | X197: =IF(AD135<0,(AD135+AD135/2)/$CT$134,"") -> -13.8392054 | AC197: =IF(AD135>0,(AD135+AD135/2)/$CT$134,"") ->  | AN197: =IF(AT135<0,(AT135+AT135/2)/$CT$134,"") ->  | AS197: =IF(AT135>0,(AT135+AT135/2)/$CT$134,"") -> 15.59461335 | BD197: =IF(BJ135<0,(BJ135+BJ135/2)/$CT$134,"") -> -5.12274721 | BI197: =IF(BJ135>0,(BJ135+BJ135/2)/$CT$134,"") ->  | BT197: =IF(BZ135<0,(BZ135+BZ135/2)/$CT$134,"") ->  | BY197: =IF(BZ135>0,(BZ135+BZ135/2)/$CT$134,"") -> 3.591009718 | CJ197: =IF(CP135<0,(CP135+CP135/2)/$CT$134,"") -> -4.10484617 | CO197: =IF(CP135>0,(CP135+CP135/2)/$CT$134,"") -> 
P202: kesme kuvveti diyagramı (KN)
L205: =Q140*S154+Y214 -> 39.49060494 | AB205: =AG140*AI154+AO214 -> 138.4127331 | AR205: =AW140*AY154+BE214 -> 42.00724617 | BH205: =BM140*BO154+BU214 -> 74.57685679 | BX205: =CC140*CE154+CK214 -> 31.22156432 | CN205: =IF(CN142=0,"",CO140*CO154) -> 63.6
M206: =(Q140*S154-((0.5*Q140*S154^2-X152-L152)/S154))-Q140*MIN(K124,K160)/2 -> 35.29060494 | AC206: =(AG140*AI154-((0.5*AG140*AI154^2-AN152-AB152)/AI154))-AG140*MIN(AA124,AA160)/2 -> 127.8127331 | AS206: =(AW140*AY154-((0.5*AW140*AY154^2-BD152-AR152)/AY154))-AW140*MIN(AQ124,AQ160)/2 -> 37.80724617 | BI206: =(BM140*BO154-((0.5*BM140*BO154^2-BT152-BH152)/BO154))-BM140*MIN(BG124,BG160)/2 -> 63.97685679 | BY206: =(CC140*CE154-((0.5*CC140*CE154^2-CJ152-BX152)/CE154))-CC140*MIN(BW124,BW160)/2 -> 27.02156432 | CO206: =IF(CN142=0,"",CO140*(CO154-MIN(CM160,CM124))) -> 42.4
P207: =(Q140*S154-((0.5*Q140*S154^2-X152-L152)/S154))-Q140*(MIN(K124,K160)/2+R139) -> 24.03460494 | S207: (d mesafede) | AF207: =(AG140*AI154-((0.5*AG140*AI154^2-AN152-AB152)/AI154))-AG140*(MIN(AA124,AA160)/2+AH139) -> 99.40473314 | AV207: =(AW140*AY154-((0.5*AW140*AY154^2-BD152-AR152)/AY154))-AW140*(MIN(AQ124,AQ160)/2+AX139) -> 26.55124617 | BL207: =(BM140*BO154-((0.5*BM140*BO154^2-BT152-BH152)/BO154))-BM140*(MIN(BG124,BG160)/2+BN139) -> 35.56885679 | CB207: =(CC140*CE154-((0.5*CC140*CE154^2-CJ152-BX152)/CE154))-CC140*(MIN(BW124,BW160)/2+CD139) -> 15.76556432
Q208: =(Q140*S154-((0.5*Q140*S154^2-X152-L152)/S154))-Q140*(MIN(K124,K160)/2+2*O163) -> 11.77060494 | T208: (2*h mesafede) | AG208: =(AG140*AI154-((0.5*AG140*AI154^2-AN152-AB152)/AI154))-AG140*(MIN(AA124,AA160)/2+2*AE163) -> 68.45273314 | AW208: =(AW140*AY154-((0.5*AW140*AY154^2-BD152-AR152)/AY154))-AW140*(MIN(AQ124,AQ160)/2+2*AU163) -> 14.28724617 | BM208: =(BM140*BO154-((0.5*BM140*BO154^2-BT152-BH152)/BO154))-BM140*(MIN(BG124,BG160)/2+2*BK163) -> 4.616856793 | CC208: =(CC140*CE154-((0.5*CC140*CE154^2-CJ152-BX152)/CE154))-CC140*(MIN(BW124,BW160)/2+2*CA163) -> 3.501564322
G209: =IF(H197<0,H197,"") ->  | N209: =IF(M197>0,M197,"") -> 0.07746331488 | W209: =IF(X197<0,X197,"") -> -13.8392054 | AD209: =IF(AC197>0,AC197,"") ->  | AM209: =IF(AN197<0,AN197,"") ->  | AT209: =IF(AS197>0,AS197,"") -> 15.59461335 | BC209: =IF(BD197<0,BD197,"") -> -5.12274721 | BJ209: =IF(BI197>0,BI197,"") ->  | BS209: =IF(BT197<0,BT197,"") ->  | BZ209: =IF(BY197>0,BY197,"") -> 3.591009718 | CI209: =IF(CJ197<0,CJ197,"") -> -4.10484617 | CP209: =IF(CO197>0,CO197,"") -> 
F210: =IF(H221<0,H221,"") ->  | O210: =IF(M221>0,M221,"") -> 0.09131185852 | V210: =IF(X221<0,X221,"") -> -16.3133164 | AE210: =IF(AC221>0,AC221,"") ->  | AL210: =IF(AN221<0,AN221,"") ->  | AU210: =IF(AS221>0,AS221,"") -> 18.38254831 | BB210: =IF(BD221<0,BD221,"") -> -6.038568956 | BK210: =IF(BI221>0,BI221,"") ->  | BR210: =IF(BT221<0,BT221,"") ->  | CA210: =IF(BY221>0,BY221,"") -> 4.232994313 | CH210: =IF(CJ221<0,CJ221,"") -> -4.838692138 | CQ210: =IF(CO221>0,CO221,"") -> 
O211: (d mesafede) | T211: =-(((0.5*Q140*S154^2-X152-L152)/S154)-Q140*(MIN(AA124,AA160)/2+2*O163)) -> -25.18939506 | AJ211: =-(((0.5*AG140*AI154^2-AN152-AB152)/AI154)-AG140*(MIN(AQ124,AQ160)/2+2*AE163)) -> -67.22726686 | AZ211: =-(((0.5*AW140*AY154^2-BD152-AR152)/AY154)-AW140*(MIN(BG124,BG160)/2+2*AU163)) -> 10.92724617 | BP211: =-(((0.5*BM140*BO154^2-BT152-BH152)/BO154)-BM140*(MIN(BW124,BW160)/2+2*BK163)) -> -8.103143207 | CF211: =-(((0.5*CC140*CE154^2-CJ152-BX152)/CE154)-CC140*(MIN(CM124,CM160)/2+2*CA163)) -> -4.562435678
P212: (2*h mesafede) | U212: =-(((0.5*Q140*S154^2-X152-L152)/S154)-Q140*(MIN(AA124,AA160)/2+R139)) -> -37.45339506 | AK212: =-(((0.5*AG140*AI154^2-AN152-AB152)/AI154)-AG140*(MIN(AQ124,AQ160)/2+AH139)) -> -98.17926686 | BA212: =-(((0.5*AW140*AY154^2-BD152-AR152)/AY154)-AW140*(MIN(BG124,BG160)/2+AX139)) -> -1.336753832 | BQ212: =-(((0.5*BM140*BO154^2-BT152-BH152)/BO154)-BM140*(MIN(BW124,BW160)/2+BN139)) -> -39.05514321 | CG212: =-(((0.5*CC140*CE154^2-CJ152-BX152)/CE154)-CC140*(MIN(CM124,CM160)/2+CD139)) -> -16.82643568
H213: =IF(H142=0,"",-E140*(I154-MIN(K124,K160))) -> -29.68 | X213: =-(((0.5*Q140*S154^2-X152-L152)/S154)-Q140*MIN(AA124,AA160)/2) -> -48.70939506 | AN213: =-(((0.5*AG140*AI154^2-AN152-AB152)/AI154)-AG140*MIN(AQ124,AQ160)/2) -> -126.5872669 | BD213: =-(((0.5*AW140*AY154^2-BD152-AR152)/AY154)-AW140*MIN(BG124,BG160)/2) -> -12.59275383 | BT213: =-(((0.5*BM140*BO154^2-BT152-BH152)/BO154)-BM140*MIN(BW124,BW160)/2) -> -67.46314321 | CJ213: =-(((0.5*CC140*CE154^2-CJ152-BX152)/CE154)-CC140*MIN(CM124,CM160)/2) -> -28.08243568
I214: =IF(H142=0,"",-E140*I154) -> -50.88 | Y214: =-(0.5*Q140*S154^2+(-X152)-L152)/S154 -> -52.90939506 | AO214: =-(0.5*AG140*AI154^2+(-AN152)-AB152)/AI154 -> -137.1872669 | BE214: =-(0.5*AW140*AY154^2+(-BD152)-AR152)/AY154 -> -16.79275383 | BU214: =-(0.5*BM140*BO154^2+(-BT152)-BH152)/BO154 -> -78.06314321 | CK214: =-(0.5*CC140*CE154^2+(-CJ152)-BX152)/CE154 -> -32.28243568
H221: =IF(G135<0,(G135+G135/2)/$CT$146,"") ->  | M221: =IF(G135>0,(G135+G135/2)/$CT$146,"") -> 0.09131185852 | X221: =IF(W135<0,(W135+W135/2)/$CT$146,"") -> -16.3133164 | AC221: =IF(W135>0,(W135+W135/2)/$CT$146,"") ->  | AN221: =IF(AM135<0,(AM135+AM135/2)/$CT$146,"") ->  | AS221: =IF(AM135>0,(AM135+AM135/2)/$CT$146,"") -> 18.38254831 | BD221: =IF(BC135<0,(BC135+BC135/2)/$CT$146,"") -> -6.038568956 | BI221: =IF(BC135>0,(BC135+BC135/2)/$CT$146,"") ->  | BT221: =IF(BS135<0,(BS135+BS135/2)/$CT$146,"") ->  | BY221: =IF(BS135>0,(BS135+BS135/2)/$CT$146,"") -> 4.232994313 | CJ221: =IF(CI135<0,(CI135+CI135/2)/$CT$146,"") -> -4.838692138 | CO221: =IF(CI135>0,(CI135+CI135/2)/$CT$146,"") -> 
B224: ÇERÇEVE CROSS (4 AÇIKLIKLI) (rijitlik çarpanlı) (inş.müh. Gürcan BERBEROĞLU tel: 0532 366 02 04 www.betoncelik.com )
C225: pas payı d ' = | H225: 0.03 | J225: m | Q225: Pd = 1,4 * g + 1,6 * q | AW225: dikkat sadece sarı hücrelere rakam giriniz.
C226: kiriş için etkin rijitlik çarpanı = | L226: 0.35 | Q226: Not: kolon ve kiriş atalet momentleri etkin rijitlik çarpanı ile çarpılmıştır.
C227: kolon için etkin rijitlik çarpanı = | L227: 0.7
E228: sol konsol yükler | Q228: 1.ci açıklık yükler | AG228: 2.ci açıklık yükler | AW228: 3.cü açıklık yükler | BM228: 4.cü açıklık yükler | BZ228: sağ konsol yükler
E229: g= | F229: 12 | I229: KN/m | R229: g= | S229: 12 | V229: KN/m | AH229: g= | AI229: 12 | AL229: KN/m | AX229: g= | AY229: 12 | BB229: KN/m | BN229: g= | BO229: 12 | BR229: KN/m | CA229: g= | CB229: 12 | CE229: KN/m
E230: q= | F230: 16 | I230: KN/m | R230: q= | S230: 16 | V230: KN/m | AH230: q= | AI230: 16 | AL230: KN/m | AX230: q= | AY230: 16 | BB230: KN/m | BN230: q= | BO230: 16 | BR230: KN/m | CA230: q= | CB230: 16 | CE230: KN/m
C231: 1,4 * g = | F231: =1.4*F229 -> 16.8 | I231: KN/m | P231: 1,4 * g = | S231: =1.4*S229 -> 16.8 | V231: KN/m | AF231: 1,4 * g = | AI231: =1.4*AI229 -> 16.8 | AL231: KN/m | AV231: 1,4 * g = | AY231: =1.4*AY229 -> 16.8 | BB231: KN/m | BL231: 1,4 * g = | BO231: =1.4*BO229 -> 16.8 | BR231: KN/m | BY231: 1,4 * g = | CB231: =1.4*CB229 -> 16.8 | CE231: KN/m
D232: Pd = | F232: =1.4*F229+1.6*F230 -> 42.4 | I232: KN/m | Q232: Pd = | S232: =1.4*S229+1.6*S230 -> 42.4 | V232: KN/m | AG232: Pd = | AI232: =1.4*AI229+1.6*AI230 -> 42.4 | AL232: KN/m | AW232: Pd = | AY232: =1.4*AY229+1.6*AY230 -> 42.4 | BB232: KN/m | BM232: Pd = | BO232: =1.4*BO229+1.6*BO230 -> 42.4 | BR232: KN/m | BZ232: Pd = | CB232: =1.4*CB229+1.6*CB230 -> 42.4 | CE232: KN/m
C233: g + g = | F233: =F230+F229 -> 28 | I233: KN/m | P233: g + g = | S233: =S230+S229 -> 28 | V233: KN/m | AF233: g + g = | AI233: =AI230+AI229 -> 28 | AL233: KN/m | AV233: g + g = | AY233: =AY230+AY229 -> 28 | BB233: KN/m | BL233: g + g = | BO233: =BO230+BO229 -> 28 | BR233: KN/m | BY233: g + g = | CB233: =CB230+CB229 -> 28 | CE233: KN/m
C234: 0,9 * g = | F234: =0.9*F229 -> 10.8 | I234: KN/m | P234: 0,9 * g = | S234: =0.9*S229 -> 10.8 | V234: KN/m | AF234: 0,9 * g = | AI234: =0.9*AI229 -> 10.8 | AL234: KN/m | AV234: 0,9 * g = | AY234: =0.9*AY229 -> 10.8 | BB234: KN/m | BL234: 0,9 * g = | BO234: =0.9*BO229 -> 10.8 | BR234: KN/m | BY234: 0,9 * g = | CB234: =0.9*CB229 -> 10.8 | CE234: KN/m
K235: 0.5 | M235: m | AA235: 0.5 | AC235: m | AQ235: 0.5 | AS235: m | BG235: 0.5 | BI235: m | BW235: 0.5 | BY235: m
H237: 0.6 | J237: m | X237: 0.6 | Z237: m | AN237: 0.6 | AP237: m | BD237: 0.6 | BF237: m | BT237: 0.6 | BV237: m
G241: =-(H253+L253)*K253 -> -1.696518896 | N241: =-(H253+L253)*K249 -> -1.562583194 | W241: =-(X254+AB254+X253+AB253)*AA253 -> -11.71175923 | AD241: =-(X254+AB254+X253+AB253)*AA249 -> -10.78714666 | AM241: =-(AN253+AR253)*AQ253 -> 10.65486977 | AT241: =-(AN253+AR253)*AQ249 -> 9.813695836 | BC241: =-(BD253+BH253+BD254+BH254)*BG253 -> -14.01017174 | BJ241: =-(BD253+BH253+BD254+BH254)*BG249 -> -12.90410555 | BS241: =-(BT253+BX253)*BW253 -> 19.38924431 | BZ241: =-(BT253+BX253)*BW249 -> 17.8585145
G242: =-L255*K253 -> 1.588234379 | K242: dm4 | N242: =-L255*K249 -> 1.462847454 | W242: =-(X256+AB256)*AA253 -> -0.4915573932 | AA242: dm4 | AD242: =-(X256+AB256)*AA249 -> -0.4527502306 | AM242: =-(AN255+AR255)*AQ253 -> 2.816006765 | AQ242: dm4 | AT242: =-(AN255+AR255)*AQ249 -> 2.593690442 | BC242: =-(BD256+BH256)*BG253 -> -0.5307226803 | BG242: dm4 | BJ242: =-(BD256+BH256)*BG249 -> -0.4888235213 | BS242: =-BT255*BW253 -> 2.049269175 | BW242: dm4 | BZ242: =-BT255*BW249 -> 1.887484767
G243: =-L257*K253 -> 0.06666021184 | N243: =-L257*K249 -> 0.06139756354 | W243: =-(X258+AB258)*AA253 -> -0.01993990248 | AD243: =-(X258+AB258)*AA249 -> -0.01836569965 | AM243: =-(AN257+AR257)*AQ253 -> 0.1122201148 | AT243: =-(AN257+AR257)*AQ249 -> 0.103360632 | BC243: =-(BD258+BH258)*BG253 -> -0.02068239439 | BJ243: =-(BD258+BH258)*BG249 -> -0.01904957378 | BS243: =-BT257*BW253 -> 0.07762885778 | BZ243: =-BT257*BW249 -> 0.07150026375 | CD243: m
G244: =-L259*K253 -> 0.002704054789 | K244: =H237*K235^3/12*10000*L227 -> 43.75 | N244: =-L259*K249 -> 0.00249057678 | W244: =-(X260+AB260)*AA253 -> -0.0007986467484 | AA244: =X237*AA235^3/12*10000*L227 -> 43.75 | AD244: =-(X260+AB260)*AA249 -> -0.0007355956893 | AM244: =-(AN259+AR259)*AQ253 -> 0.004463997015 | AQ244: =AN237*AQ235^3/12*10000*L227 -> 43.75 | AT244: =-(AN259+AR259)*AQ249 -> 0.004111576198 | BC244: =-(BD260+BH260)*BG253 -> -0.0008154549465 | BG244: =BD237*BG235^3/12*10000*L227 -> 43.75 | BJ244: =-(BD260+BH260)*BG249 -> -0.0007510769244 | BS244: =-BT259*BW253 -> 0.003025215828 | BW244: =BT237*BW235^3/12*10000*L227 -> 43.75 | BZ244: =-BT259*BW249 -> 0.002786382999
G245: =-L261*K253 -> 0.0001083046704 | N245: =-L261*K249 -> 9.975430164e-05 | AM245: =-(AN261+AR261)*AQ253 -> 0.0001774476348 | AT245: =-(AN261+AR261)*AQ249 -> 0.000163438611 | BS245: =-BT261*BW253 -> 0.0001192766739 | BZ245: =+BT261*BW249 -> -0.0001098600944 | CD245: 3.8
G246: =SUM(G241:I245) -> -0.03881194602 | N246: =SUM(N241:P245) -> -0.03574784502 | W246: =SUM(W241:Y245) -> -12.22405517 | AD246: =SUM(AD241:AF245) -> -11.25899818 | AM246: =SUM(AM241:AO245) -> 13.58773809 | AT246: =SUM(AT241:AV245) -> 12.51502192 | BC246: =SUM(BC241:BE245) -> -14.56239227 | BJ246: =SUM(BJ241:BL245) -> -13.41272972 | BS246: =SUM(BS241:BU245) -> 21.51928684 | BZ246: =SUM(BZ241:CB245) -> 19.82017605
K247: I = | AA247: I = | AQ247: I = | BG247: I = | BW247: I =
K249: =(K244/CD245)/(K244/CD245+K258/CD257+R253/S265) -> 0.3494148466 | AA249: =(AA244/CD245)/(R253/S265+AA244/CD245+AA258/CD257+AH253/AI265) -> 0.2685005701 | AQ249: =(AQ244/CD245)/(AH253/AI265+AQ244/CD245+AQ258/CD257+AX253/AY265) -> 0.2685005701 | BG249: =(BG244/CD245)/(AX253/AY265+BG244/CD245+BG258/CD257+BN253/BO265) -> 0.2685005701 | BW249: =(BW244/CD245)/(BN253/BO265+BW244/CD245+BW258/CD257) -> 0.3391930579
E250: Pd = | Q250: d= | R250: =+O274-$H$225 -> 0.67 | T250: m | AG250: d= | AH250: =+AE274-$H$225 -> 0.67 | AJ250: m | AW250: d= | AX250: =+AU274-$H$225 -> 0.67 | AZ250: m | BM250: d= | BN250: =+BK274-$H$225 -> 0.67 | BP250: m | BY250: 1,4 * g =
E251: =IF(E250="g =",F229,IF(E250="Pd =",F232,IF(E250="1,4 * g =",F231,IF(E250="g + q =",F233,IF(E250="0,9 * g =",F234,"hatalı"))))) -> 42.4 | H251: KN/m | N251: 1,4 * g = | Q251: =IF(N251="g =",S229,IF(N251="Pd =",S232,IF(N251="1,4 * g =",S231,IF(N251="g + q =",S233,IF(N251="0,9 * g =",S234,"hatalı"))))) -> 16.8 | T251: KN/m | AD251: Pd = | AG251: =IF(AD251="g =",AI229,IF(AD251="Pd =",AI232,IF(AD251="1,4 * g =",AI231,IF(AD251="g + q =",AI233,IF(AD251="0,9 * g =",AI234,"hatalı"))))) -> 42.4 | AJ251: KN/m | AT251: 1,4 * g = | AW251: =IF(AT251="g =",AY229,IF(AT251="Pd =",AY232,IF(AT251="1,4 * g =",AY231,IF(AT251="g + q =",AY233,IF(AT251="0,9 * g =",AY234,"hatalı"))))) -> 16.8 | AZ251: KN/m | BJ251: Pd = | BM251: =IF(BJ251="g =",BO229,IF(BJ251="Pd =",BO232,IF(BJ251="1,4 * g =",BO231,IF(BJ251="g + q =",BO233,IF(BJ251="0,9 * g =",BO234,"hatalı"))))) -> 42.4 | BP251: KN/m | BY251: =IF(BY250="g =",CB229,IF(BY250="Pd =",CB232,IF(BY250="1,4 * g =",CB231,IF(BY250="g + q =",CB233,IF(BY250="0,9 * g =",CB234,"hatalı"))))) -> 16.8 | CB251: KN/m
I252: 0 | L252: =(R253/S265)/(K244/CD245+K258/CD257+R253/S265) -> 0.2712204628 | Y252: =(R253/S265)/(R253/S265+AA244/CD245+AA258/CD257+AH253/AI265) -> 0.2084137225 | AB252: =(AH253/AI265)/(R253/S265+AA244/CD245+AA258/CD257+AH253/AI265) -> 0.2315708028 | AO252: =(AH253/AI265)/(AH253/AI265+AQ244/CD245+AQ258/CD257+AX253/AY265) -> 0.2315708028 | AR252: =(AX253/AY265)/(AH253/AI265+AQ244/CD245+AQ258/CD257+AX253/AY265) -> 0.2084137225 | BE252: =(AX253/AY265)/(AX253/AY265+BG244/CD245+BG258/CD257+BN253/BO265) -> 0.2084137225 | BH252: =(BN253/BO265)/(AX253/AY265+BG244/CD245+BG258/CD257+BN253/BO265) -> 0.2315708028 | BU252: =(BN253/BO265)/(BN253/BO265+BW244/CD245+BW258/CD257) -> 0.2925401935 | BX252: 0
H253: =-E251*I265*I265/2 -> -30.528 | K253: =(K258/CD257)/(K244/CD245+K258/CD257+R253/S265) -> 0.3793646906 | L253: =Q251*S265^2/12 -> 35 | Q253: I= | R253: =(R271*U273^3/12+U273*R271*(((U273*R271*U273/2+R278*(O274-U273)*((O274-U273)/2+U273))/(R271*U273+(O274-U273)*R278))-U273/2)^2+R278*(O274-U273)^3/12+R278*(O274-U273)*(O274-((U273*R271*U273/2+R278*(O274-U273)*((O274-U273)/2+U273))/(R271*U273+(O274-U273)*R278))-(O274-U273)/2)^2)*10000*L226 -> 44.68333333 | U253: dm4 | X253: =-Q251*S265^2/12 -> -35 | AA253: =(AA258/CD257)/(R253/S265+AA244/CD245+AA258/CD257+AH253/AI265) -> 0.2915149047 | AB253: =AG251*AI265^2/12 -> 71.55 | AG253: I= | AH253: =(AH271*AK273^3/12+AK273*AH271*(((AK273*AH271*AK273/2+AH278*(AE274-AK273)*((AE274-AK273)/2+AK273))/(AH271*AK273+(AE274-AK273)*AH278))-AK273/2)^2+AH278*(AE274-AK273)^3/12+AH278*(AE274-AK273)*(AE274-((AK273*AH271*AK273/2+AH278*(AE274-AK273)*((AE274-AK273)/2+AK273))/(AH271*AK273+(AE274-AK273)*AH278))-(AE274-AK273)/2)^2)*10000*L226 -> 44.68333333 | AK253: dm4 | AN253: =-AG251*AI265^2/12 -> -71.55 | AQ253: =(AQ258/CD257)/(AH253/AI265+AQ244/CD245+AQ258/CD257+AX253/AY265) -> 0.2915149047 | AR253: =AW251*AY265^2/12 -> 35 | AW253: I= | AX253: =(AX271*BA273^3/12+BA273*AX271*(((BA273*AX271*BA273/2+AX278*(AU274-BA273)*((AU274-BA273)/2+BA273))/(AX271*BA273+(AU274-BA273)*AX278))-BA273/2)^2+AX278*(AU274-BA273)^3/12+AX278*(AU274-BA273)*(AU274-((BA273*AX271*BA273/2+AX278*(AU274-BA273)*((AU274-BA273)/2+BA273))/(AX271*BA273+(AU274-BA273)*AX278))-(AU274-BA273)/2)^2)*10000*L226 -> 44.68333333 | BA253: dm4 | BD253: =-AW251*AY265^2/12 -> -35 | BG253: =(BG258/CD257)/(AX253/AY265+BG244/CD245+BG258/CD257+BN253/BO265) -> 0.2915149047 | BH253: =BM251*BO265^2/12 -> 71.55 | BM253: I= | BN253: =(BN271*BQ273^3/12+BQ273*BN271*(((BQ273*BN271*BQ273/2+BN278*(BK274-BQ273)*((BK274-BQ273)/2+BQ273))/(BN271*BQ273+(BK274-BQ273)*BN278))-BQ273/2)^2+BN278*(BK274-BQ273)^3/12+BN278*(BK274-BQ273)*(BK274-((BQ273*BN271*BQ273/2+BN278*(BK274-BQ273)*((BK274-BQ273)/2+BQ273))/(BN271*BQ273+(BK274-BQ273)*BN278))-(BK274-BQ273)/2)^2)*10000*L226 -> 44.68333333 | BQ253: dm4 | BT253: =-BM251*BO265^2/12 -> -71.55 | BW253: =(BW258/CD257)/(BN253/BO265+BW244/CD245+BW258/CD257) -> 0.3682667486 | BX253: =BY251*BY265*BY265/2 -> 18.9
L254: =-(H253+L253)*L252 -> -1.21289791 | X254: =+L254/2 -> -0.6064489548 | AB254: =AN254/2 -> 4.231956421 | AN254: =-(AN253+AR253)*AO252 -> 8.463912841 | AR254: =-(AN253+AR253)*AR252 -> 7.617521557 | BD254: =+AR254/2 -> 3.808760779 | BH254: =BT254/2 -> 7.701120593 | BT254: =-(BT253+BX253)*BU252 -> 15.40224119
L255: =X255/2 -> -4.186563532 | X255: =-(X254+AB254+X253+AB253)*Y252 -> -8.373127064 | AB255: =-(X254+AB254+X253+AB253)*AB252 -> -9.303474516 | AN255: =+AB255/2 -> -4.651737258 | AR255: =BD255/2 -> -5.00816939 | BD255: =-(BD253+BH253+BD254+BH254)*BE252 -> -10.01633878 | BH255: =-(BD253+BH253+BD254+BH254)*BH252 -> -11.12926531 | BT255: =+BH255/2 -> -5.564632655 | CD255: m
K256: dm4 | L256: =-L255*L252 -> 1.135481699 | X256: =+L256/2 -> 0.5677408494 | AA256: dm4 | AB256: =AN256/2 -> 1.118476169 | AN256: =-(AN255+AR255)*AO252 -> 2.236952337 | AQ256: dm4 | AR256: =-(AN255+AR255)*AR252 -> 2.013257103 | BD256: =+AR256/2 -> 1.006628552 | BG256: dm4 | BH256: =BT256/2 -> 0.8139393568 | BT256: =-BT255*BU252 -> 1.627878714 | BW256: dm4
L257: =X257/2 -> -0.1757153828 | X257: =-(X256+AB256)*Y252 -> -0.3514307656 | AB257: =-(X256+AB256)*AB252 -> -0.3904786285 | AN257: =+AB257/2 -> -0.1952393142 | AR257: =BD257/2 -> -0.1897156674 | BD257: =-(BD256+BH256)*BE252 -> -0.3794313349 | BH257: =-(BD256+BH256)*BH252 -> -0.4215903721 | BT257: =+BH257/2 -> -0.210795186 | CD257: 3.5
K258: =H268*K271^3/12*10000*L227 -> 43.75 | L258: =-L257*L252 -> 0.04765760745 | X258: =+L258/2 -> 0.02382880373 | AA258: =X268*AA271^3/12*10000*L227 -> 43.75 | AB258: =AN258/2 -> 0.04457216707 | AN258: =-(AN257+AR257)*AO252 -> 0.08914433414 | AQ258: =AN268*AQ271^3/12*10000*L227 -> 43.75 | AR258: =-(AN257+AR257)*AR252 -> 0.08022990073 | BD258: =+AR258/2 -> 0.04011495036 | BG258: =BD268*BG271^3/12*10000*L227 -> 43.75 | BH258: =BT258/2 -> 0.03083303226 | BT258: =-BT257*BU252 -> 0.06166606451 | BW258: =BT268*BW271^3/12*10000*L227 -> 43.75
L259: =X259/2 -> -0.007127850473 | X259: =-(X258+AB258)*Y252 -> -0.01425570095 | AB259: =-(X258+AB258)*AB252 -> -0.01583966772 | AN259: =+AB259/2 -> -0.007919833859 | AR259: =BD259/2 -> -0.007393266581 | BD259: =-(BD258+BH258)*BE252 -> -0.01478653316 | BH259: =-(BD258+BH258)*BH252 -> -0.01642948129 | BT259: =+BH259/2 -> -0.008214740645
L260: =-L259*L252 -> 0.001933218904 | X260: =+L260/2 -> 0.000966609452 | AB260: =AN260/2 -> 0.001773033481 | AN260: =-(AN259+AR259)*AO252 -> 0.003546066962 | AR260: =-(AN259+AR259)*AR252 -> 0.003191460266 | BD260: =+AR260/2 -> 0.001595730133 | BH260: =BT260/2 -> 0.001201570909 | BT260: =-BT259*BU252 -> 0.002403141818
K261: I = | L261: =X261/2 -> -0.000285489591 | X261: =-(X260+AB260)*Y252 -> -0.000570979182 | AA261: I = | AB261: =-(X260+AB260)*AB252 -> -0.0006344213133 | AN261: =+AB261/2 -> -0.0003172106567 | AQ261: I = | AR261: =BD261/2 -> -0.0002914979615 | BD261: =-(BD260+BH260)*BE252 -> -0.000582995923 | BG261: I = | BH261: =-(BD260+BH260)*BH252 -> -0.0006477732478 | BT261: =+BH261/2 -> -0.0003238866239 | BW261: I =
L262: =-L261*L252 -> 7.743061899e-05 | AN262: =-(AN261+AR261)*AO252 -> 0.0001409591434 | AR262: =-(AN261+AR261)*AR252 -> 0.000126863229 | BT262: =-BT261*BU252 -> 9.474985563e-05
L263: =SUM(L253:N262) -> 30.60255979 | X263: =SUM(X253:Z262) -> -43.7532972 | AB263: =SUM(AB253:AD262) -> 67.23635056 | AN263: =SUM(AN253:AP262) -> -65.61151708 | AR263: =SUM(AR253:AT262) -> 39.50875706 | BD263: =SUM(BD253:BF262) -> -40.55403963 | BH263: =SUM(BH253:BJ262) -> 68.52916162 | BT263: =SUM(BT253:BV262) -> -60.23968261
I265: 1.2 | K265: m | S265: 5 | U265: m | AI265: 4.5 | AK265: m | AY265: 5 | BA265: m | BO265: 4.5 | BQ265: m | BY265: 1.5 | CA265: m | CJ265: konsol yoksa konsol genişliğini sıfır girin.
H268: 0.6 | J268: m | X268: 0.6 | Z268: m | AN268: 0.6 | AP268: m | BD268: 0.6 | BF268: m | BT268: 0.6 | BV268: m
K271: 0.5 | M271: m | R271: 1.2 | T271: m | AA271: 0.5 | AC271: m | AH271: 1.2 | AJ271: m | AQ271: 0.5 | AS271: m | AX271: 1.2 | AZ271: m | BG271: 0.5 | BI271: m | BN271: 1.2 | BP271: m | BW271: 0.5 | BY271: m
O273: m | U273: 0.1 | W273: m | AE273: m | AK273: 0.1 | AM273: m | AU273: m | BA273: 0.1 | BC273: m | BK273: m | BQ273: 0.1 | BS273: m
O274: 0.7 | AE274: 0.7 | AU274: 0.7 | BK274: 0.7
R278: 0.25 | T278: m | AH278: 0.25 | AJ278: m | AX278: 0.25 | AZ278: m | BN278: 0.25 | BP278: m
H281: =IF(N246<0,N246/2,"") -> -0.01787392251 | M281: =IF(N246>0,N246/2,"") ->  | X281: =IF(AD246<0,AD246/2,"") -> -5.629499092 | AC281: =IF(AD246>0,AD246/2,"") ->  | AN281: =IF(AT246<0,AT246/2,"") ->  | AS281: =IF(AT246>0,AT246/2,"") -> 6.257510962 | BD281: =IF(BJ246<0,BJ246/2,"") -> -6.706364859 | BI281: =IF(BJ246>0,BJ246/2,"") ->  | BT281: =IF(BZ246<0,BZ246/2,"") ->  | BY281: =IF(BZ246>0,BZ246/2,"") -> 9.910088026
P286: moment diyagramı (KNm)
I289: =IF(H253=0,"",+H253) -> -30.528 | Y289: =+X263 -> -43.7532972 | AO289: =+AN263 -> -65.61151708 | BE289: =+BD263 -> -40.55403963 | BU289: =+BT263 -> -60.23968261
L290: =-L263 -> -30.60255979 | AB290: =-AB263 -> -67.23635056 | AR290: =-AR263 -> -39.50875706 | BH290: =-BH263 -> -68.52916162 | BX290: =IF(BX253=0,"",-BX253) -> -18.9
H291: =IF(H253=0,"",+I289-(H324+I325)/2*MIN(K271,K235)/2) -> -20.458 | M291: =-(+L263-(Q251*S265-((0.5*Q251*S265^2-X263-L263)/S265))*MIN(K235,K271)/3) -> -24.0409177 | X291: =-(-X263-((0.5*Q251*S265^2-X263-L263)/S265)*MIN(AA235,AA271)/3) -> -36.31493929 | AC291: =-(+AB263-(AG251*AI265-((0.5*AG251*AI265^2-AN263-AB263)/AI265))*MIN(AA235,AA271)/3) -> -51.27617154 | AN291: =-(-AN263-((0.5*AG251*AI265^2-AN263-AB263)/AI265)*MIN(AQ235,AQ271)/3) -> -49.7716961 | AS291: =-(+AR263-(AW251*AY265-((0.5*AW251*AY265^2-BD263-AR263)/AY265))*MIN(AQ235,AQ271)/3) -> -32.54359982 | BD291: =-(-BD263-((0.5*AW251*AY265^2-BD263-AR263)/AY265)*MIN(BG235,BG271)/3) -> -33.51919688 | BI291: =-(+BH263-(BM251*BO265-((0.5*BM251*BO265^2-BT263-BH263)/BO265))*MIN(BG235,BG271)/3) -> -52.32214388 | BT291: =-(-BT263-((0.5*BM251*BO265^2-BT263-BH263)/BO265)*MIN(BW235,BW271)/3) -> -44.64670035
BY292: =IF(BX253=0,"",BX290+(BX316+BY317)/2*MIN(BW235,BW271)/2) -> -13.65
G293: =IF(N246>0,-N246,"") ->  | N293: =IF(N246<0,-N246,"") -> 0.03574784502 | W293: =IF(AD246>0,-AD246,"") ->  | AD293: =IF(AD246<0,-AD246,"") -> 11.25899818 | AM293: =IF(AT246>0,-AT246,"") -> -12.51502192 | AT293: =IF(AT246<0,-AT246,"") ->  | BC293: =IF(BJ246>0,-BJ246,"") ->  | BJ293: =IF(BJ246<0,-BJ246,"") -> 13.41272972 | BS293: =IF(BZ246>0,-BZ246,"") -> -19.82017605 | BZ293: =IF(BZ246<0,-BZ246,"") -> 
G294: =IF(G246<0,G246,"") -> -0.03881194602 | N294: =IF(G246>0,G246,"") ->  | W294: =IF(W246<0,W246,"") -> -12.22405517 | AD294: =IF(W246>0,W246,"") ->  | AM294: =IF(AM246<0,AM246,"") ->  | AT294: =IF(AM246>0,AM246,"") -> 13.58773809 | BC294: =IF(BC246<0,BC246,"") -> -14.56239227 | BJ294: =IF(BC246>0,BC246,"") ->  | BS294: =IF(BS246<0,BS246,"") ->  | BZ294: =IF(BS246>0,BS246,"") -> 21.51928684
R297: =(((L263-(-X263))/S265+Q251*S265*0.5)^2/(2*Q251))-L263 -> 15.52795471 | AH297: =(((AB263-(-AN263))/AI265+AG251*AI265*0.5)^2/(2*AG251))-AB263 -> 40.90260362 | AX297: =(((AR263-(-BD263))/AY265+AW251*AY265*0.5)^2/(2*AW251))-AR263 -> 12.46990238 | BN297: =(((BH263-(-BT263))/BO265+BM251*BO265*0.5)^2/(2*BM251))-BH263 -> 42.98059388
H305: =IF(G246>0,-G246/2,"") ->  | M305: =IF(G246<0,-G246/2,"") -> 0.01940597301 | X305: =IF(W246>0,-W246/2,"") ->  | AC305: =IF(W246<0,-W246/2,"") -> 6.112027585 | AN305: =IF(AM246>0,-AM246/2,"") -> -6.793869045 | AS305: =IF(AM246<0,-AM246/2,"") ->  | BD305: =IF(BC246>0,-BC246/2,"") ->  | BI305: =IF(BC246<0,-BC246/2,"") -> 7.281196133 | BT305: =IF(BS246>0,-BS246/2,"") -> -10.75964342 | BY305: =IF(BS246<0,-BS246/2,"") -> 
H308: =IF(N246<0,(N246+N246/2)/$CD$245,"") -> -0.01411099146 | M308: =IF(N246>0,(N246+N246/2)/$CD$245,"") ->  | X308: =IF(AD246<0,(AD246+AD246/2)/$CD$245,"") -> -4.444341388 | AC308: =IF(AD246>0,(AD246+AD246/2)/$CD$245,"") ->  | AN308: =IF(AT246<0,(AT246+AT246/2)/$CD$245,"") ->  | AS308: =IF(AT246>0,(AT246+AT246/2)/$CD$245,"") -> 4.940140233 | BD308: =IF(BJ246<0,(BJ246+BJ246/2)/$CD$245,"") -> -5.294498573 | BI308: =IF(BJ246>0,(BJ246+BJ246/2)/$CD$245,"") ->  | BT308: =IF(BZ246<0,(BZ246+BZ246/2)/$CD$245,"") ->  | BY308: =IF(BZ246>0,(BZ246+BZ246/2)/$CD$245,"") -> 7.823753705 | CJ308: =IF(CP246<0,(CP246+CP246/2)/$CT$134,"") ->  | CO308: =IF(CP246>0,(CP246+CP246/2)/$CT$134,"") -> 
P313: kesme kuvveti diyagramı (KN)
L316: =Q251*S265+Y325 -> 39.36985252 | AB316: =AG251*AI265+AO325 -> 95.76107411 | AR316: =AW251*AY265+BE325 -> 41.79094349 | BH316: =BM251*BO265+BU325 -> 97.24210645 | BX316: =IF(BX253=0,"",BY251*BY265) -> 25.2 | CN316: =IF(CN253=0,"",CO251*CO265) -> 
M317: =(Q251*S265-((0.5*Q251*S265^2-X263-L263)/S265))-Q251*MIN(K235,K271)/2 -> 35.16985252 | AC317: =(AG251*AI265-((0.5*AG251*AI265^2-AN263-AB263)/AI265))-AG251*MIN(AA235,AA271)/2 -> 85.16107411 | AS317: =(AW251*AY265-((0.5*AW251*AY265^2-BD263-AR263)/AY265))-AW251*MIN(AQ235,AQ271)/2 -> 37.59094349 | BI317: =(BM251*BO265-((0.5*BM251*BO265^2-BT263-BH263)/BO265))-BM251*MIN(BG235,BG271)/2 -> 86.64210645 | BY317: =IF(BX253=0,"",BY251*(BY265-MIN(BW271,BW235))) -> 16.8 | CO317: =IF(CN253=0,"",CO251*(CO265-MIN(CM271,F227))) -> 
P318: =(Q251*S265-((0.5*Q251*S265^2-X263-L263)/S265))-Q251*(MIN(K235,K271)/2+R250) -> 23.91385252 | S318: (d mesafede) | AF318: =(AG251*AI265-((0.5*AG251*AI265^2-AN263-AB263)/AI265))-AG251*(MIN(AA235,AA271)/2+AH250) -> 56.75307411 | AV318: =(AW251*AY265-((0.5*AW251*AY265^2-BD263-AR263)/AY265))-AW251*(MIN(AQ235,AQ271)/2+AX250) -> 26.33494349 | BL318: =(BM251*BO265-((0.5*BM251*BO265^2-BT263-BH263)/BO265))-BM251*(MIN(BG235,BG271)/2+BN250) -> 58.23410645
Q319: =(Q251*S265-((0.5*Q251*S265^2-X263-L263)/S265))-Q251*(MIN(K235,K271)/2+2*O274) -> 11.64985252 | T319: (2*h mesafede) | AG319: =(AG251*AI265-((0.5*AG251*AI265^2-AN263-AB263)/AI265))-AG251*(MIN(AA235,AA271)/2+2*AE274) -> 25.80107411 | AW319: =(AW251*AY265-((0.5*AW251*AY265^2-BD263-AR263)/AY265))-AW251*(MIN(AQ235,AQ271)/2+2*AU274) -> 14.07094349 | BM319: =(BM251*BO265-((0.5*BM251*BO265^2-BT263-BH263)/BO265))-BM251*(MIN(BG235,BG271)/2+2*BK274) -> 27.28210645
G320: =IF(H308<0,H308,"") -> -0.01411099146 | N320: =IF(M308>0,M308,"") ->  | W320: =IF(X308<0,X308,"") -> -4.444341388 | AD320: =IF(AC308>0,AC308,"") ->  | AM320: =IF(AN308<0,AN308,"") ->  | AT320: =IF(AS308>0,AS308,"") -> 4.940140233 | BC320: =IF(BD308<0,BD308,"") -> -5.294498573 | BJ320: =IF(BI308>0,BI308,"") ->  | BS320: =IF(BT308<0,BT308,"") ->  | BZ320: =IF(BY308>0,BY308,"") -> 7.823753705 | CI320: =IF(CJ308<0,CJ308,"") ->  | CP320: =IF(CO308>0,CO308,"") -> 
F321: =IF(H332<0,H332,"") -> -0.01663369115 | O321: =IF(M332>0,M332,"") ->  | V321: =IF(X332<0,X332,"") -> -5.238880787 | AE321: =IF(AC332>0,AC332,"") ->  | AL321: =IF(AN332<0,AN332,"") ->  | AU321: =IF(AS332>0,AS332,"") -> 5.823316324 | BB321: =IF(BD332<0,BD332,"") -> -6.241025257 | BK321: =IF(BI332>0,BI332,"") ->  | BR321: =IF(BT332<0,BT332,"") ->  | CA321: =IF(BY332>0,BY332,"") -> 9.222551503 | CH321: =IF(CJ332<0,CJ332,"") ->  | CQ321: =IF(CO332>0,CO332,"") -> 
O322: (d mesafede) | T322: =-(((0.5*Q251*S265^2-X263-L263)/S265)-Q251*(MIN(AA235,AA271)/2+2*O274)) -> -16.91014748 | AJ322: =-(((0.5*AG251*AI265^2-AN263-AB263)/AI265)-AG251*(MIN(AQ235,AQ271)/2+2*AE274)) -> -25.07892589 | AZ322: =-(((0.5*AW251*AY265^2-BD263-AR263)/AY265)-AW251*(MIN(BG235,BG271)/2+2*AU274)) -> -14.48905651 | BP322: =-(((0.5*BM251*BO265^2-BT263-BH263)/BO265)-BM251*(MIN(BW235,BW271)/2+2*BK274)) -> -23.59789355
P323: (2*h mesafede) | U323: =-(((0.5*Q251*S265^2-X263-L263)/S265)-Q251*(MIN(AA235,AA271)/2+R250)) -> -29.17414748 | AK323: =-(((0.5*AG251*AI265^2-AN263-AB263)/AI265)-AG251*(MIN(AQ235,AQ271)/2+AH250)) -> -56.03092589 | BA323: =-(((0.5*AW251*AY265^2-BD263-AR263)/AY265)-AW251*(MIN(BG235,BG271)/2+AX250)) -> -26.75305651 | BQ323: =-(((0.5*BM251*BO265^2-BT263-BH263)/BO265)-BM251*(MIN(BW235,BW271)/2+BN250)) -> -54.54989355
H324: =IF(H253=0,"",-E251*(I265-MIN(K235,K271))) -> -29.68 | X324: =-(((0.5*Q251*S265^2-X263-L263)/S265)-Q251*MIN(AA235,AA271)/2) -> -40.43014748 | AN324: =-(((0.5*AG251*AI265^2-AN263-AB263)/AI265)-AG251*MIN(AQ235,AQ271)/2) -> -84.43892589 | BD324: =-(((0.5*AW251*AY265^2-BD263-AR263)/AY265)-AW251*MIN(BG235,BG271)/2) -> -38.00905651 | BT324: =-(((0.5*BM251*BO265^2-BT263-BH263)/BO265)-BM251*MIN(BW235,BW271)/2) -> -82.95789355
I325: =IF(H253=0,"",-E251*I265) -> -50.88 | Y325: =-(0.5*Q251*S265^2+(-X263)-L263)/S265 -> -44.63014748 | AO325: =-(0.5*AG251*AI265^2+(-AN263)-AB263)/AI265 -> -95.03892589 | BE325: =-(0.5*AW251*AY265^2+(-BD263)-AR263)/AY265 -> -42.20905651 | BU325: =-(0.5*BM251*BO265^2+(-BT263)-BH263)/BO265 -> -93.55789355
H332: =IF(G246<0,(G246+G246/2)/$CD$257,"") -> -0.01663369115 | M332: =IF(G246>0,(G246+G246/2)/$CD$257,"") ->  | X332: =IF(W246<0,(W246+W246/2)/$CD$257,"") -> -5.238880787 | AC332: =IF(W246>0,(W246+W246/2)/$CD$257,"") ->  | AN332: =IF(AM246<0,(AM246+AM246/2)/$CD$257,"") ->  | AS332: =IF(AM246>0,(AM246+AM246/2)/$CD$257,"") -> 5.823316324 | BD332: =IF(BC246<0,(BC246+BC246/2)/$CD$257,"") -> -6.241025257 | BI332: =IF(BC246>0,(BC246+BC246/2)/$CD$257,"") ->  | BT332: =IF(BS246<0,(BS246+BS246/2)/$CD$257,"") ->  | BY332: =IF(BS246>0,(BS246+BS246/2)/$CD$257,"") -> 9.222551503 | CJ332: =IF(CI246<0,(CI246+CI246/2)/$CT$146,"") ->  | CO332: =IF(CI246>0,(CI246+CI246/2)/$CT$146,"") -> 
B335: ÇERÇEVE CROSS (3 AÇIKLIKLI) (rijitlik çarpanlı) (inş.müh. Gürcan BERBEROĞLU tel: 0532 366 02 04 www.betoncelik.com )
C336: pas payı d ' = | H336: 0.03 | J336: m | R336: Pd = 1,4 * g + 1,6 * q | AW336: dikkat sadece sarı hücrelere rakam giriniz.
C337: kiriş için etkin rijitlik çarpanı = | L337: 0.35 | R337: Not: kolon ve kiriş atalet momentleri etkin rijitlik çarpanı ile çarpılmıştır.
C338: kolon için etkin rijitlik çarpanı = | L338: 0.7
E339: sol konsol yükler | Q339: 1.ci açıklık yükler | AG339: 2.ci açıklık yükler | AW339: 3.cü açıklık yükler | BJ339: sağ konsol yükler
E340: g= | F340: 12 | I340: KN/m | R340: g= | S340: 12 | V340: KN/m | AH340: g= | AI340: 12 | AL340: KN/m | AX340: g= | AY340: 12 | BB340: KN/m | BK340: g= | BL340: 12 | BO340: KN/m
E341: q= | F341: 16 | I341: KN/m | R341: q= | S341: 16 | V341: KN/m | AH341: q= | AI341: 16 | AL341: KN/m | AX341: q= | AY341: 16 | BB341: KN/m | BK341: q= | BL341: 16 | BO341: KN/m
C342: 1,4 * g = | F342: =1.4*F340 -> 16.8 | I342: KN/m | P342: 1,4 * g = | S342: =1.4*S340 -> 16.8 | V342: KN/m | AF342: 1,4 * g = | AI342: =1.4*AI340 -> 16.8 | AL342: KN/m | AV342: 1,4 * g = | AY342: =1.4*AY340 -> 16.8 | BB342: KN/m | BI342: 1,4 * g = | BL342: =1.4*BL340 -> 16.8 | BO342: KN/m
... 184 more rows
